Workbook

Sheet Open
A2: Stone Oak Ranch $2000 Added Open
A3: FUT | B3: DER | C3: Age Inc | D3: HS | E3: Y/co | F3: Youth | G3: Draw | H3: Rider Name | I3: Horse Name | J3: Pen | K3: Time | L3: Final Time | M3: Placing | N3: Money Earned | P3: D Placing | R3: Split
G4: 441 | H4: Casey Mathis | I4: SH Stylish and Sly | K4: 15.334 | L4: =IF(OR(J4=5,J4=10, J4=15, J4="BP",J4="SCR"),"NT",K4) -> 15.334 | M4: 1D 1st | N4: 1232.28 | P4: 1D | Q4: 15.334
D5: X | G5: 12 | H5: Stevi Hillman | I5: Quatro Fame | K5: 15.665 | M5: 1D 2nd | N5: 1056.24 | P5: 2D | Q5: =SUM(Q4+0.5) -> 15.834 | R5: 0.5
G6: 206 | H6: Schelli Creacy | I6: Nico | K6: 15.709 | M6: 1D 3rd | N6: 880.2 | P6: 3D | Q6: =SUM(Q4+1) -> 16.334 | R6: 0.5
B7: X | C7: A | D7: X | G7: 51 | H7: Cassidy Teague | I7: Tres Socks | K7: 15.712 | M7: 1D 4th | N7: 704.16 | P7: 4D | Q7: =SUM(Q4+1.5) -> 16.834 | R7: 0.5
G8: 426 | H8: Kassie Mowry | I8: CP He Will Be Epic | K8: 15.726 | L8: =IF(OR(J8=5,J8=10, J8=15, J8="BP",J8="SCR"),"NT",K8) -> 15.726 | M8: 1D 5th | N8: 528.12 | P8: 5D | Q8: =SUM(Q4+2) -> 17.334 | R8: 0.5
B9: X | D9: X | G9: 52 | H9: SHeaLynn McConnel | I9: Smooth N Heavenly | K9: 15.732 | M9: 1D 6th | N9: 410.76
D10: X | G10: 274 | H10: Caroline Kelly | I10: Hesa Dashin Dreamer | K10: 15.742 | M10: 1D 7th | N10: 352.08 | P10: # Entered
G11: 71 | H11: Emma Abbott | I11: Br Galsfrench hayday | K11: 15.768 | M11: 1D 8th | N11: 293.4 | P11: =COUNTA(H4:H503) -> 445
E12: X | F12: X | G12: 19 | H12: Tristan Bowles | I12: Short Okie Lena | K12: 15.804 | M12: 1D 9th | N12: 234.72
C13: A | D13: X | G13: 276 | H13: Andrea Busby | I13: Famous Heartbreaker | K13: 15.822 | M13: 1D 10th tie | N13: 88 | P13: # Ran
G14: 22 | H14: Hallie Hanssen | I14: Tres Movidas | K14: 15.822 | M14: 1D 10th tie | N14: 88 | P14: =COUNTA(K4:K503) -> 445
G15: 427 | H15: Molly Otto | I15: Sixappeal | K15: 15.842 | L15: =IF(OR(J15=5,J15=10, J15=15, J15="BP",J15="SCR"),"NT",K15) -> 15.842 | M15: 2D 1st | N15: 1026.9
G16: 122 | H16: Cassidy Champlin | I16: Wood Bea French Girl | K16: 15.846 | M16: 2D 2nd | N16: 880 | P16: # Left
G17: 359 | H17: Ivy Hurst | I17: JL Tularosa | K17: 15.852 | M17: 2D 3rd | N17: 733.5 | P17: =$P$11-$P$14 -> 0
B18: X | G18: 118 | H18: Emma Abbott | I18: Rr Too Slick Eye Mist | K18: 15.874 | M18: 2D 4th | N18: 586.8
A19: X | G19: 136 | H19: Billie Ann Harmon | I19: Famous Disco Bugs | K19: 15.885 | M19: 2D 5th | N19: 440.1
B20: X | G20: 174 | H20: Billie Ann Harmon | I20: Me Flingin Diamonds | K20: 15.89 | M20: 2D 6th | N20: 342.3
C21: A | D21: X | G21: 203 | H21: Jimmie Smith | I21: Marthas Bullion | K21: 15.891 | M21: 2D 7th | N21: 293.4
G22: 348 | H22: McKenzie Morgan | I22: Infirewatershonor | K22: 15.902 | M22: 2D 8th | N22: 244.5
G23: 279 | H23: Andrea Long | I23: Solomon | K23: 15.906 | M23: 2D 9th | N23: 195.6
G24: 155 | H24: Cassidy Champlin | I24: Casadys Cash N Fame | K24: 15.911 | M24: 2D 10th | N24: 146.7
B25: X | G25: 28 | H25: Ryann Pedone | I25: Streakers Queen | K25: 15.919
C26: A | G26: 303 | H26: Joy Wargo | I26: Cashin On The Bayou | K26: 15.948
C27: S | G27: 223 | H27: Donna Kay Rule | I27: High Valor | K27: 15.954
C28: S | G28: 212 | H28: Martha Smith | I28: Firewatermakemehappy | K28: 15.955
G29: 246 | H29: Lauren Howe | I29: A Hero Spotted | K29: 15.971
G30: 1 | H30: Ryann Pedone | I30: Streakin Queenie | K30: 15.996
B31: X | G31: 81 | H31: Brittany Pierson | I31: CF Dash N Dirty | K31: 15.999
G32: 69 | H32: Wendy Suhn | I32: Hes Just A fling | K32: 16
G33: 347 | H33: Kenzie Cook | I33: Fletch N Flo | K33: 16.013
G34: 247 | H34: Nisa Berry | I34: Luv That Cool Corona | K34: 16.021
G35: 123 | H35: Jimmie Smith | I35: Guys Ima Bunny Cat | K35: 16.032
G36: 97 | H36: Emma Abbott | I36: Hr Night Lingered On | K36: 16.052
G37: 361 | H37: Olivia Hodnett | I37: Yella Izabella | K37: 16.07
G38: 16 | H38: Haley Thorne | I38: No Holy Rollin | K38: 16.071
G39: 228 | H39: Savanna Morgan | I39: Fairleas Star Date | K39: 16.072
C40: A | G40: 312 | H40: Karri McKim | I40: Firen Ta Fame | K40: 16.078
G41: 451 | H41: Molly Otto | I41: No Lion Shes Flying | K41: 16.082 | L41: =IF(OR(J41=5,J41=10, J41=15, J41="BP",J41="SCR"),"NT",K41) -> 16.082
G42: 227 | H42: Sally Conway | I42: Dashing Jetolena | K42: 16.086
A43: X | G43: 176 | H43: Kelsey Treharne (Treehorn) | I43: VQ Nonstop Stinson | K43: 16.096
C44: A | G44: 249 | H44: Kinsey Chandler | I44: Judge Knott | K44: 16.103
G45: 423 | H45: Shelbi Reynolds | I45: Radar Cats Merada | K45: 16.109
G46: 149 | H46: Louis Paradis | I46: Purrfect Choice | K46: 16.111
G47: 452 | H47: Kassie Mowry | I47: Epic Guy | K47: 16.114 | L47: =IF(OR(J47=5,J47=10, J47=15, J47="BP",J47="SCR"),"NT",K47) -> 16.114
G48: 354 | H48: Shannon Pearson | I48: Reds Roany Pony | K48: 16.128
E49: X | F49: X | G49: 406 | H49: Emily Wilkins | I49: Shake It For Tina | K49: 16.149 | L49: =IF(OR(J49=5,J49=10, J49=15, J49="BP",J49="SCR"),"NT",K49) -> 16.149
G50: 125 | H50: Cassidy Teague | I50: Diva | K50: 16.151
G51: 159 | H51: Schelli Creacy | I51: Blazin Superior | K51: 16.16
B52: X | G52: 363 | H52: Ashley Schafer | I52: French Streaking Slew | K52: 16.166
G53: 285 | H53: Stephanie Harris | I53: PJ Preacher Jones | K53: 16.178
A54: X | G54: 210 | H54: Joy Wargo | I54: Wildchildsgotcashuno | K54: 16.188
A55: X | G55: 153 | H55: Kelsey Treharne (Treehorn) | I55: Aintgotnothinonme | K55: 16.189
G56: 151 | H56: Jenna Napier | I56: Frenchmans Dually | K56: 16.191
A57: X | G57: 236 | H57: Stormi Pittman | I57: Shake It Frenchman | K57: 16.2
C58: A | G58: 18 | H58: Molly Steffen | K58: 16.2
G59: 103 | H59: Wendy Suhn | I59: HLH Streakin A Fling | K59: 16.207
G60: 425 | H60: Halyn Lide | I60: Hez Runnin Ta Heaven | K60: 16.209 | L60: =IF(OR(J60=5,J60=10, J60=15, J60="BP",J60="SCR"),"NT",K60) -> 16.209
B61: X | G61: 146 | H61: Lauren Strough | I61: Dineros Spare Change | K61: 16.216
G62: 382 | H62: Maggie Carter | I62: Dial Ta Fame | K62: 16.216
G63: 93 | H63: Cassidy Champlin | I63: DG Excuse My French | K63: 16.223
C64: S | G64: 192 | H64: Lisa Wernli | I64: Flashs Fine Effort | K64: 16.224
G65: 75 | H65: Kylie Bowles | I65: Miracle Christmas | K65: 16.234
G66: 130 | H66: Becky Dillard | I66: Wow Shes Hot | K66: 16.234
G67: 215 | H67: Brianna Woodmansee | I67: CC Fancy Lil Cowgirl | K67: 16.234
C68: S | G68: 317 | H68: Louis Ferguson | I68: Epic Two KS | K68: 16.239
C69: A | G69: 194 | H69: Kylee Scribner | I69: Badger A Conchadrift | K69: 16.248
G70: 85 | H70: Lainey Whitmire | I70: Bullseye Bullion | K70: 16.255
G71: 158 | H71: Tristan Spivey | I71: WR Perfect Cut | K71: 16.265
E72: X | F72: X | G72: 397 | H72: Aspen Adams | I72: Credit The Gin | K72: 16.266
G73: 233 | H73: Abigail Plants | I73: Misbehaven Barbie | K73: 16.269
G74: 345 | H74: Kristel Ising | I74: Miss Gray | K74: 16.27
E75: X | F75: X | G75: 181 | H75: Emily Welch | I75: Blazin Bay | K75: 16.275
B76: X | G76: 386 | H76: Ashley Schafer | I76: Bobby McGee | K76: 16.277
G77: 340 | H77: Maggie Carter | I77: Slick N Slide | K77: 16.281
G78: 263 | H78: Krista Whitley | I78: Frenchmans Splash | K78: 16.284
C79: A | G79: 171 | H79: Brooke Kelley | I79: Nu Bueno Karma | K79: 16.285
G80: 91 | H80: Haley Thorne | I80: Superflytoo | K80: 16.285
G81: 65 | H81: Lindsey McLeod | I81: Blazin Hot Chick | K81: 16.299
G82: 404 | H82: Sunnie Thiberville | I82: Rocker | K82: 16.309
G83: 417 | H83: Jessica Beauvais | I83: Eyes Okie Dokie | K83: 16.309
G84: 138 | H84: McKenna Brown | I84: Shesza Hottie Guys | K84: 16.31
G85: 388 | H85: Phillip Kenyon | I85: Contagious Charm | K85: 16.329
G86: 360 | H86: Danica Hoppman | I86: Lonaker | K86: 16.334 | M86: 3D 1st | N86: 821.52
G87: 282 | H87: Alicia Childers | I87: Raygan | K87: 16.337 | M87: 3D 2nd | N87: 704.16
G88: 62 | H88: Misty Peek | I88: Amos | K88: 16.343 | M88: 3D 3rd | N88: 586.8
A89: X | G89: 47 | H89: Wyatt Paul | I89: MJ Condo Cowboy | K89: 16.35 | M89: 3D 4th | N89: 469.44
C90: S | G90: 275 | H90: Sherri Barnes | I90: Racing For Perks | K90: 16.363 | M90: 3D 5th | N90: 352.08
G91: 338 | H91: Courtney Worthington | I91: CM Bubblin Dynamite | K91: 16.365 | M91: 3D 6th | N91: 273.84
E92: X | F92: X | G92: 323 | H92: Samantha Willoughby | I92: Moose On The Loose | K92: 16.366 | M92: 3D 7th | N92: 234.72
C93: S | G93: 25 | H93: Amy Swan | I93: Boons Prescription | K93: 16.37 | M93: 3D 8th | N93: 195.6
G94: 55 | H94: Nisa Berry | I94: Floriana | K94: 16.376 | M94: 3D 9th | N94: 156.48
G95: 308 | H95: Tori Volk | I95: CN Holy Cow | K95: 16.377 | M95: 3D 10th | N95: 117.36
A96: X | G96: 61 | H96: Kelsey Treharne (Treehorn) | I96: Firewater Streakin | K96: 16.382
C97: S | G97: 234 | H97: Lisa Wernli | I97: Babe On The Run | K97: 16.387
G98: 305 | H98: Kortney Fisher | I98: Stolin French Kisses | K98: 16.389
E99: X | F99: X | G99: 106 | H99: Jolie Smith | I99: Ms Hollywood Delight | K99: 16.396
G100: 232 | H100: Riley Fountain | I100: Royal Dame Ta Fame | K100: 16.398
G101: 358 | H101: Maggie Carter | I101: No Leadin Larry | K101: 16.402
G102: 410 | H102: Phillip Kenyon | I102: Tillies Hayday | K102: 16.405 | L102: =IF(OR(J102=5,J102=10, J102=15, J102="BP",J102="SCR"),"NT",K102) -> 16.405
G103: 429 | H103: Lacy Billingsley | I103: PV Watchmeneighneigh | K103: 16.407 | L103: =IF(OR(J103=5,J103=10, J103=15, J103="BP",J103="SCR"),"NT",K103) -> 16.407
G104: 401 | H104: Maggie Carter | I104: GQH November Rain | K104: 16.414
G105: 44 | H105: Shelby Shackelford | I105: RTF A Natural Stoli | K105: 16.415
G106: 74 | H106: Gena Franklin | I106: SS Secret Six | K106: 16.418
G107: 20 | H107: Cheyenne Walling | I107: Rocky | K107: 16.422
G108: 428 | H108: Maria Mannering | I108: Moonshine | K108: 16.425 | L108: =IF(OR(J108=5,J108=10, J108=15, J108="BP",J108="SCR"),"NT",K108) -> 16.425
A109: X | G109: 172 | H109: Abigail Plants | I109: Playing In Traffic | K109: 16.428
G110: 432 | H110: Natalie Kurosky | I110: Turn N With Ease | K110: 16.439 | L110: =IF(OR(J110=5,J110=10, J110=15, J110="BP",J110="SCR"),"NT",K110) -> 16.439
C111: S | G111: 265 | H111: Jo Kirby | I111: Heavenly Joak | K111: 16.447
G112: 21 | H112: Casey Hammons | I112: BH Trip Ta Fame | K112: 16.452
G113: 342 | H113: Ivy Hurst | I113: No Coolin This Jet | K113: 16.473
G114: 353 | H114: Janie Johnson | I114: Peachy | K114: 16.48
G115: 230 | H115: Tallaney Clark | I115: MR Tres A Bug | K115: 16.481
G116: 143 | H116: Jo Fisher | I116: Fancy | K116: 16.486
E117: X | F117: X | G117: 180 | H117: Hadley Durfey | I117: Delightful Brownies | K117: 16.501
G118: 434 | H118: Janee Ornelas | I118: Handsome | K118: 16.501 | L118: =IF(OR(J118=5,J118=10, J118=15, J118="BP",J118="SCR"),"NT",K118) -> 16.501
A119: X | G119: 248 | H119: Kelsey Treharne (Treehorn) | I119: VF Rosie Stinson | K119: 16.503
G120: 257 | H120: Billie Ann Harmon | I120: Sheza Famous Bugs | K120: 16.505
B121: X | G121: 438 | H121: Phillip Kenyon | I121: Make It A Mojito | K121: 16.506 | L121: =IF(OR(J121=5,J121=10, J121=15, J121="BP",J121="SCR"),"NT",K121) -> 16.506
G122: 408 | H122: Ashley Schafer | I122: Famous Streakin Guy | K122: 16.509 | L122: =IF(OR(J122=5,J122=10, J122=15, J122="BP",J122="SCR"),"NT",K122) -> 16.509
A123: X | G123: 17 | H123: Kylie Bowles | I123: Slick A Lena | K123: 16.519
A124: X | G124: 163 | H124: Ben McDonnell | I124: AJ Shakeitlike Elvis | K124: 16.519
B125: X | G125: 261 | H125: Savanna Morgan | I125: Bout To Get Reckless | K125: 16.523
A126: X | G126: 95 | H126: Billie Ann Harmon | I126: Zero Judgement | K126: 16.528
G127: 185 | H127: Fallon Forbes | I127: Another Bug Leo | K127: 16.529
G128: 356 | H128: Nicki Zimmerman | I128: Queenie | K128: 16.533
G129: 98 | H129: Wyatt Paul | I129: Try For First | K129: 16.536
A130: X | G130: 99 | H130: Ryann Pedone | I130: Kool Rocket Man | K130: 16.539
A131: X | G131: 200 | H131: Kelsey Treharne (Treehorn) | I131: VF Silver Design | K131: 16.541
G132: 226 | H132: Jessica McRae | I132: Ruby | K132: 16.551
E133: X | F133: X | G133: 262 | H133: Grace Gardiner | I133: Eye On Fame | K133: 16.555
G134: 4 | H134: Sara Redden | I134: Pedro | K134: 16.565
A135: X | C135: A | G135: 365 | H135: Whitney Godinez | I135: Chilla On The Rocks | K135: 16.578
G136: 58 | H136: Jade Crago | I136: Nitros Next Topmodel | K136: 16.585
G137: 355 | H137: Tori Morris | I137: Oscar | K137: 16.595
G138: 191 | H138: Tristan Spivey | I138: Peppys Hot Spice | K138: 16.613
E139: X | F139: X | G139: 229 | H139: Grace Gardiner | I139: Firewater Kool Eyes | K139: 16.621
G140: 366 | H140: Brooke Bailey | I140: Crown Royal Rona | K140: 16.622
A141: X | G141: 199 | H141: Stormi Pittman | I141: Bar S Streaking Taz | K141: 16.623
A142: X | G142: 26 | H142: Wendy Suhn | I142: Jess B Gone | K142: 16.628
G143: 88 | H143: Cassidy Thomas | I143: Shiftwell | K143: 16.64
G144: 100 | H144: Maggie Carter | I144: Miss Inapropriate | K144: 16.646
A145: X | G145: 53 | H145: Haley Thorne | I145: Superflyandfamous | K145: 16.653
G146: 331 | H146: Brooke Hickey | I146: Another French Boy | K146: 16.66
G147: 392 | H147: Rudie Hepper | K147: 16.672
A148: X | G148: 37 | H148: Kelsey Treharne (Treehorn) | I148: The First Lady | K148: 16.674
G149: 73 | H149: Sydney Swatsell | I149: Feature Me Firin | K149: 16.685
G150: 31 | H150: Tillar Murray | I150: JL Lava Roc | K150: 16.689
C151: A | G151: 170 | H151: Cierra Chapman | I151: Ginger | K151: 16.705
G152: 119 | H152: Jenna Napier | I152: Joselina | K152: 16.705
A153: X | G153: 224 | H153: Kelsey Treharne (Treehorn) | I153: VF Wheely Cool | K153: 16.718
G154: 322 | H154: Cheyenne Lange | I154: The+I379e Running Rebel | K154: 16.735
E155: X | F155: X | G155: 148 | H155: McKenzie Jo Brown | I155: Jae Supreme Lena | K155: 16.754
G156: 23 | H156: Emma Abbott | I156: First Down Nicky | K156: 16.774
G157: 313 | H157: Sarah Rau | I157: MV Famous Margarita | K157: 16.777
G158: 105 | H158: McKenna Brown | I158: Done Too Suen | K158: 16.781
E159: X | F159: X | G159: 300 | H159: Torie Bush | I159: Total Co Motion | K159: 16.792
G160: 374 | H160: Mary Sanders | I160: Firewater Delux | K160: 16.799
C161: A | G161: 197 | H161: Jessica Mullins | I161: Doc Eyed Fame | K161: 16.801
G162: 133 | H162: Kristi Smith | I162: Lectronic Boomernic | K162: 16.817
E163: X | F163: X | G163: 250 | H163: Samantha Willoughby | I163: Fabulous Twister | K163: 16.825
G164: 56 | H164: Nikki Morrison | I164: Shining For The Boys | K164: 16.827
E165: X | F165: X | G165: 281 | H165: Laurel Allred | I165: Quicks Blue Peppy | K165: 16.835 | M165: 4D 1st | N165: 616.14
G166: 169 | H166: Michaela Robertson | I166: EZ On The Dynamite | K166: 16.839 | M166: 4D 2nd | N166: 528.12
A167: X | G167: 243 | H167: Joy Wargo | I167: Starrin Baby Rose | K167: 16.848 | M167: 4D 3rd | N167: 440.1
A168: X | G168: 183 | H168: Lauren Strough | I168: Drifting For Dineros | K168: 16.853 | M168: 4D 4th | N168: 352.08
A169: X | G169: 201 | H169: Abigail Plants | I169: KN Baileys Sidecar | K169: 16.861 | M169: 4D 5th | N169: 264.06
F170: X | G170: 369 | H170: Kimberlee Littlejohn | I170: ICR Painted Chex | K170: 16.87 | M170: 4D 6th | N170: 205.38
G171: 30 | H171: Sydney Swatsell | I171: Smalls | K171: 16.874 | M171: 4D 7th | N171: 176.04
E172: X | F172: X | G172: 286 | H172: Samantha Willoughby | I172: Cash | K172: 16.878 | M172: 4D 8th | N172: 146.7
G173: 270 | H173: Gina Hill | I173: BF Makin It Happen | K173: 16.882 | M173: 4D 9th | N173: 117.36
C174: S | G174: 5 | H174: Karen Hancock | I174: Just Anotherstreak | K174: 16.893 | M174: 4D 10th | N174: 88.02
G175: 129 | H175: Cassidy Thomas | I175: Ladys Moon Fire | K175: 16.899
C176: S | G176: 27 | H176: Lisa Corey | I176: Beda Dream | K176: 16.904
G177: 184 | H177: Hanna Trimber | I177: Eye Jess Zoomed Bye | K177: 16.907
B178: X | C178: A | G178: 164 | H178: Jessica Mullins | I178: Kakunamatadi | K178: 16.911
E179: X | F179: X | G179: 437 | H179: Emily Wilkins | I179: Stickin Ta Fame | K179: 16.926 | L179: =IF(OR(J179=5,J179=10, J179=15, J179="BP",J179="SCR"),"NT",K179) -> 16.926
G180: 220 | H180: Hollie Sirman | I180: Easter Bunny Special | K180: 16.945
G181: 343 | H181: Jesse Jaureguito | I181: Foxx Me | K181: 16.95
E182: X | F182: X | G182: 160 | H182: Jolie Smith | I182: Bartender Nics | K182: 16.956
G183: 7 | H183: Lisa Jo Velliquette | I183: Namgis D 44 | K183: 16.967
G184: 49 | H184: Emma Abbott | I184: RR Yawanna Peasa Dis | K184: 16.97
G185: 259 | H185: Allie Zant | I185: Dbsweetnsmooth | K185: 16.999
E186: X | F186: X | G186: 79 | H186: Kimberly Steffen | I186: Frosted Country | K186: 17
G187: 294 | H187: Brooke Hickey | I187: Shes Flyin High Guys | K187: 17.006
G188: 333 | H188: Lauren Howe | I188: Shiner | K188: 17.008
G189: 120 | H189: Haley Thorne | I189: Superfly | K189: 17.017
G190: 268 | H190: Jackie Hartt | I190: Storm To Honor | K190: 17.024
G191: 385 | H191: Alex Hall | I191: Rocket Star Boy | K191: 17.025
A192: X | G192: 139 | H192: Abigail Plants | I192: KN Stopbuginmebailey | K192: 17.037
G193: 421 | H193: Ava Corey | I193: Simi Sioux | K193: 17.039
G194: 217 | H194: Hanna Trimber | I194: Eye Jess Win | K194: 17.045
G195: 96 | H195: Michaela Robertson | I195: CM Platinum Dondi | K195: 17.057
G196: 375 | H196: Tiffany Davis | I196: Sticks Up For The Dr | K196: 17.057
E197: X | F197: X | G197: 439 | H197: Katy Barrett | I197: Breeze Of Sonitalena | K197: 17.062 | L197: =IF(OR(J197=5,J197=10, J197=15, J197="BP",J197="SCR"),"NT",K197) -> 17.062
G198: 124 | H198: Lexi Peaden | I198: Shelby Turns EZ | K198: 17.063
E199: X | F199: X | G199: 264 | H199: Raedyn Brown | I199: Booger Texas Style | K199: 17.073
G200: 346 | H200: Kandace Bussell | I200: Circlebar Rare Bug | K200: 17.079
G201: 144 | H201: Christi Durfey | I201: Camo | K201: 17.094
... 302 more rows

Sheet Senior
A1: Futurity | B1: Der | C1: Age Inct. | D1: BBR | E1: Draw | F1: Rider Name | G1: Horse Name | H1: Pen | I1: Time | J1: Final Time | K1: Placing | L1: Money Earned
E2: 1 | F2: Donna Kay Rule | G2: High Valor | I2: 15.954 | K2: 1D 1st | L2: 106
E3: 2 | F3: Martha Smith | G3: Firewatermakemehappy | I3: 15.955 | K3: 1D 2nd | L3: 70
E4: 3 | F4: Lisa Wernli | G4: Flashs Fine Effort | I4: 16.224
E5: 4 | F5: Louis Ferguson | G5: Epic Two KS | I5: 16.239
E6: 5 | F6: Sherri Barnes | G6: Racing For Perks | I6: 16.363
E7: 6 | F7: Amy Swan | G7: Boons Prescription | I7: 16.37
E8: 7 | F8: Lisa Wernli | G8: Babe On The Run | I8: 16.387
E9: 8 | F9: Jo Kirby | G9: Heavenly Joak | I9: 16.447
E10: 9 | F10: Karen Hancock | G10: Just Anotherstreak | I10: 16.893 | K10: 2D 1st | L10: 90
E11: 10 | F11: Lisa Corey | G11: Beda Dream | I11: 16.904 | K11: 2D 2nd | L11: 60
E12: 11 | F12: Jolene Jones | G12: Peppys Streak of Fame | I12: 17.096 | K12: 3D 1st | L12: 60
E13: 12 | F13: Patti Reardon | G13: HeCOme Dun | I13: 17.265 | K13: 3D 2nd | L13: 40
E14: 13 | F14: Chris Boyer | G14: Unzippinlikeastreaker | I14: 17.364
E15: 14 | F15: Kathy Cribbs | G15: Playboys Arrow | I15: 17.401
E16: 15 | F16: Simone Elmore | G16: Mighty Moondash | I16: 19.114 | K16: 4D 1st | L16: 45
E17: 16 | F17: Jolene Jones | G17: Capone | I17: 19.98 | K17: 4D 2nd | L17: 30
E18: 17 | F18: Trina Murray | G18: Fuel For Dash | I18: nt
E19: 18 | F19: Trina Murray | G19: Dirty Dan Stinson | I19: nt
E20: 19 | F20: Martha Smith | G20: My Epic Moment | I20: nt
E21: 20 | F21: Jolene Jones | G21: Perks Fame Aint Easy | I21: nt
E22: 21 | F22: Martha Jordan | G22: MV Fury Of The Fame | I22: nt16.128
E23: 22 | F23: Tammy Rokus | G23: Mitey Confederate | I23: nt16.167
E24: 23 | F24: Chris Boyer | G24: Lion On The Bar | I24: nt17.343
E25: 25 | F25: Jim McKinney | G25: Platinum BOK | I25: nt20.201
E26: 26
E27: 27
E28: 28
E29: 29
E30: 30
E31: 31
E32: 32
E33: 24
E34: 33
E35: 34
E36: 35
E37: 36
E38: 37
E39: 38
E40: 39
E41: 40
E42: 41 | J42: =IF(OR(H42=5,H42=10, H42=15, H42="BP",H42="SCR"),"NT",I42) -> 0
E43: 42 | J43: 0
E44: 43 | J44: 0
E45: 44 | J45: 0
E46: 45 | J46: 0
E47: 46 | J47: 0
E48: 47 | J48: 0
E49: 48 | J49: 0
E50: 49 | J50: 0
E51: 50 | J51: 0
E52: 51 | J52: 0
E53: 52 | J53: 0
E54: 53 | J54: 0
E55: 54 | J55: 0
E56: 55 | J56: 0
E57: 56 | J57: 0
E58: 57 | J58: 0
E59: 58 | J59: 0
E60: 59 | J60: 0
E61: 60 | J61: 0
E62: 61 | J62: 0
E63: 62 | J63: 0
E64: 63 | J64: 0
E65: 64 | J65: 0
E66: 65 | J66: 0
E67: 66 | J67: 0
E68: 67 | J68: 0
E69: 68 | J69: 0
E70: 69 | J70: 0
E71: 70 | J71: 0
E72: 71 | J72: 0
E73: 72 | J73: 0
E74: 73 | J74: 0
E75: 74 | J75: 0
E76: 75 | J76: 0
E77: 76 | J77: 0
E78: 77 | J78: 0
E79: 78 | J79: 0
E80: 79 | J80: 0
E81: 80 | J81: 0
E82: 81 | J82: 0
E83: 82 | J83: 0
E84: 83 | J84: 0
E85: 84 | J85: 0
E86: 85 | J86: 0
E87: 86 | J87: 0
E88: 87 | J88: 0
E89: 88 | J89: 0
E90: 89 | J90: 0
E91: 90 | J91: 0
E92: 91 | J92: 0
E93: 92 | J93: 0
E94: 93 | J94: 0
E95: 94 | J95: 0
E96: 95 | J96: 0
E97: 96 | J97: 0
E98: 97 | J98: 0
E99: 98 | J99: 0
E100: 99 | J100: 0
E101: 100 | J101: 0
E102: 101 | J102: 0
E103: 102 | J103: 0
E104: 103 | J104: 0
E105: 104 | J105: 0
E106: 105 | J106: =IF(OR(H106=5,H106=10, H106=15, H106="BP",H106="SCR"),"NT",I106) -> 0
E107: 106 | J107: 0
E108: 107 | J108: 0
E109: 108 | J109: 0
E110: 109 | J110: 0
E111: 110 | J111: 0
E112: 111 | J112: 0
E113: 112 | J113: 0
E114: 113 | J114: 0
E115: 114 | J115: 0
E116: 115 | J116: 0
E117: 116 | J117: 0
E118: 117 | J118: 0
E119: 118 | J119: 0
E120: 119 | J120: 0
E121: 120 | J121: 0
E122: 121 | J122: 0
E123: 122 | J123: 0
E124: 123 | J124: 0
E125: 124 | J125: 0
E126: 125 | J126: 0
E127: 126 | J127: 0
E128: 127 | J128: 0
E129: 128 | J129: 0
E130: 129 | J130: 0
E131: 130 | J131: 0
E132: 131 | J132: 0
E133: 132 | J133: 0
E134: 133 | J134: 0
E135: 134 | J135: 0
E136: 135 | J136: 0
E137: 136 | J137: 0
E138: 137 | J138: 0
E139: 138 | J139: 0
E140: 139 | J140: 0
E141: 140 | J141: 0
E142: 141 | J142: 0
E143: 142 | J143: 0
E144: 143 | J144: 0
E145: 144 | J145: 0
E146: 145 | J146: 0
E147: 146 | J147: 0
E148: 147 | J148: 0
E149: 148 | J149: 0
E150: 149 | J150: 0
E151: 150 | J151: 0
E152: 151 | J152: 0
E153: 152 | J153: 0
E154: 153 | J154: 0
E155: 154 | J155: 0
E156: 155 | J156: 0
E157: 156 | J157: 0
E158: 157 | J158: 0
E159: 158 | J159: 0
E160: 159 | J160: 0
E161: 160 | J161: 0
E162: 161 | J162: 0
E163: 162 | J163: 0
E164: 163 | J164: 0
E165: 164 | J165: 0
E166: 165 | J166: 0
E167: 166 | J167: 0
E168: 167 | J168: 0
E169: 168 | J169: 0
E170: 169 | J170: =IF(OR(H170=5,H170=10, H170=15, H170="BP",H170="SCR"),"NT",I170) -> 0
E171: 170 | J171: 0
E172: 171 | J172: 0
E173: 172 | J173: 0
E174: 173 | J174: 0
E175: 174 | J175: 0
E176: 175 | J176: 0
E177: 176 | J177: 0
E178: 177 | J178: 0
E179: 178 | J179: 0
E180: 179 | J180: 0
E181: 180 | J181: 0
E182: 181 | J182: 0
E183: 182 | J183: 0
E184: 183 | J184: 0
E185: 184 | J185: 0
E186: 185 | J186: 0
E187: 186 | J187: 0
E188: 187 | J188: 0
E189: 188 | J189: 0
E190: 189 | J190: 0
E191: 190 | J191: 0
E192: 191 | J192: 0
E193: 192 | J193: 0
E194: 193 | J194: 0
E195: 194 | J195: 0
E196: 195 | J196: 0
E197: 196 | J197: 0
E198: 197 | J198: 0
E199: 198 | J199: 0
E200: 199 | J200: 0
... 101 more rows

Sheet Adult
A1: Futurity | B1: Der | C1: Age Inct. | D1: BBR | E1: Draw | F1: Rider Name | G1: Horse Name | H1: Pen | I1: Time | J1: Final Time | K1: Placing | L1: Money Earned
E2: 1 | F2: Cassidy Teague | G2: Tres Socks | I2: 15.712 | K2: 1D 1st | L2: 168
E3: 2 | F3: Andrea Busby | G3: Famous Heartbreaker | I3: 15.822 | K3: 1D 2nd | L3: 112
E4: 3 | F4: Jimmie Smith | G4: Marthas Bullion | I4: 15.891
E5: 4 | F5: Joy Wargo | G5: Cashin On The Bayou | I5: 15.948
E6: 5 | F6: Karri McKim | G6: Firen Ta Fame | I6: 16.078
E7: 6 | F7: Kinsey Chandler | G7: Judge Knott | I7: 16.103
E8: 7 | F8: Molly Steffen | I8: 16.2
E9: 8 | F9: Kylee Scribner | G9: Badger A Conchadrift | I9: 16.248 | K9: 2D 1st | L9: 144
E10: 9 | F10: Brooke Kelley | G10: Nu Bueno Karma | I10: 16.285 | K10: 2D 2nd | L10: 96
E11: 10 | F11: Whitney Godinez | G11: Chilla On The Rocks | I11: 16.578
E12: 11 | F12: Cierra Chapman | G12: Ginger | I12: 16.705
E13: 12 | F13: Jessica Mullins | G13: Doc Eyed Fame | I13: 16.801 | K13: 3D 1st | L13: 96
E14: 13 | F14: Jessica Mullins | G14: Kakunamatadi | I14: 16.911 | K14: 3D 2nd | L14: 64
E15: 14 | F15: Lauren Whitmire | G15: WR Famous Amigo | I15: 17.099
E16: 15 | F16: Crystal Allred | G16: No Berry Just A Jewel | I16: 17.137
E17: 16 | F17: LeAnne Turney | G17: Dun It With Jac | I17: 17.261 | K17: 4D 1st | L17: 72
E18: 17 | F18: Kaylyn Smith | G18: Bet She Can Fly | I18: 17.366 | K18: 4D 2nd | L18: 48
E19: 18 | F19: Angelia Kerkhoff | G19: Im A Dashing Star | I19: 17.551
E20: 19 | F20: Emily Greer | G20: Elvis | I20: 17.573
E21: 20 | F21: Richard Moore | G21: Miss Thing | I21: 17.634
E22: 21 | F22: Michaela Robertson | G22: Shes Cartel Streakin | I22: 17.655
E23: 22 | F23: Emily Greer | G23: TF Speedywood Dyna | I23: 17.902
E24: 23 | F24: Christy Brower | G24: SH Im A Fighter | I24: 17.945
E25: 24 | F25: Jana Brothers | G25: Our Kinda Tuff | I25: 18.245
E26: 25 | F26: Christy Brower | G26: Miss Regal Memories | I26: 18.263
E27: 26 | F27: Cierra Chapman | G27: Sun In Fun | I27: broken
E28: 27 | F28: Kristin Shoppa | G28: JW Freeze Fame | I28: nt15.938
E29: 28 | F29: Sunnie Thiberville | G29: TJ | I29: nt15.969
E30: 29 | F30: Lauren Whitmire | G30: Fame Rox | I30: nt16.006
E31: 30 | F31: Alyssa Urbanek | G31: Fueled With Dinero | I31: nt16.048
E32: 31 | F32: Jimmie Smith | G32: Lever Action | I32: nt16.129
E33: 32 | F33: Rylee Leach | G33: NMB Chesterslilbunny | I33: nt16.217
E34: 33 | F34: Anna Johnson | G34: Famous Resurection | I34: nt16.233
E35: 34 | F35: Kristin Shoppa | G35: JW MizGuyded | I35: nt16.330
E36: 35 | F36: Cierra Chapman | G36: Lil Blushing Blonde | I36: nt16.466
E37: 36 | F37: Lauren Whitmire | G37: WR Famous Maverick | I37: nt17.015
E38: 37 | F38: Crystal Allred | G38: Lovemas Ghost | I38: nt17.204
E39: 38 | F39: CASey Caldwell | G39: Busters Request | I39: nt17.538
E40: 39 | F40: Jennifer Abbott | G40: Wendell Jackson | I40: nt21.082
E41: 40 | F41: Katie Kapanick | G41: Pistol Packin Lark | I41: nt27.418
E42: 41
E43: 42
E44: 43
E45: 44
E46: 45
E47: 46
E48: 47
E49: 48
E50: 49
E51: 50
E52: 51
E53: 52
E54: 53
E55: 54
E56: 55
E57: 56
E58: 57
E59: 58
E60: 59
E61: 60
E62: 61
E63: 62
E64: 63
E65: 64
E66: 65
E67: 66
E68: 67
E69: 68
E70: 69
E71: 70
E72: 71 | J72: =IF(OR(H72=5,H72=10, H72=15, H72="BP",H72="SCR"),"NT",I72) -> 0
E73: 72 | J73: 0
E74: 73 | J74: 0
E75: 74 | J75: 0
E76: 75 | J76: 0
E77: 76 | J77: 0
E78: 77 | J78: 0
E79: 78 | J79: 0
E80: 79 | J80: 0
E81: 80 | J81: 0
E82: 81 | J82: 0
E83: 82 | J83: 0
E84: 83 | J84: 0
E85: 84 | J85: 0
E86: 85 | J86: 0
E87: 86 | J87: 0
E88: 87 | J88: 0
E89: 88 | J89: 0
E90: 89 | J90: 0
E91: 90 | J91: 0
E92: 91 | J92: 0
E93: 92 | J93: 0
E94: 93 | J94: 0
E95: 94 | J95: 0
E96: 95 | J96: 0
E97: 96 | J97: 0
E98: 97 | J98: 0
E99: 98 | J99: 0
E100: 99 | J100: 0
E101: 100 | J101: 0
E102: 101 | J102: 0
E103: 102 | J103: 0
E104: 103 | J104: 0
E105: 104 | J105: 0
E106: 105 | J106: 0
E107: 106 | J107: 0
E108: 107 | J108: 0
E109: 108 | J109: 0
E110: 109 | J110: 0
E111: 110 | J111: 0
E112: 111 | J112: 0
E113: 112 | J113: 0
E114: 113 | J114: 0
E115: 114 | J115: 0
E116: 115 | J116: 0
E117: 116 | J117: 0
E118: 117 | J118: 0
E119: 118 | J119: 0
E120: 119 | J120: 0
E121: 120 | J121: 0
E122: 121 | J122: 0
E123: 122 | J123: 0
E124: 123 | J124: 0
E125: 124 | J125: 0
E126: 125 | J126: 0
E127: 126 | J127: 0
E128: 127 | J128: 0
E129: 128 | J129: 0
E130: 129 | J130: 0
E131: 130 | J131: 0
E132: 131 | J132: 0
E133: 132 | J133: 0
E134: 133 | J134: 0
E135: 134 | J135: 0
E136: 135 | J136: =IF(OR(H136=5,H136=10, H136=15, H136="BP",H136="SCR"),"NT",I136) -> 0
E137: 136 | J137: 0
E138: 137 | J138: 0
E139: 138 | J139: 0
E140: 139 | J140: 0
E141: 140 | J141: 0
E142: 141 | J142: 0
E143: 142 | J143: 0
E144: 143 | J144: 0
E145: 144 | J145: 0
E146: 145 | J146: 0
E147: 146 | J147: 0
E148: 147 | J148: 0
E149: 148 | J149: 0
E150: 149 | J150: 0
E151: 150 | J151: 0
E152: 151 | J152: 0
E153: 152 | J153: 0
E154: 153 | J154: 0
E155: 154 | J155: 0
E156: 155 | J156: 0
E157: 156 | J157: 0
E158: 157 | J158: 0
E159: 158 | J159: 0
E160: 159 | J160: 0
E161: 160 | J161: 0
E162: 161 | J162: 0
E163: 162 | J163: 0
E164: 163 | J164: 0
E165: 164 | J165: 0
E166: 165 | J166: 0
E167: 166 | J167: 0
E168: 167 | J168: 0
E169: 168 | J169: 0
E170: 169 | J170: 0
E171: 170 | J171: 0
E172: 171 | J172: 0
E173: 172 | J173: 0
E174: 173 | J174: 0
E175: 174 | J175: 0
E176: 175 | J176: 0
E177: 176 | J177: 0
E178: 177 | J178: 0
E179: 178 | J179: 0
E180: 179 | J180: 0
E181: 180 | J181: 0
E182: 181 | J182: 0
E183: 182 | J183: 0
E184: 183 | J184: 0
E185: 184 | J185: 0
E186: 185 | J186: 0
E187: 186 | J187: 0
E188: 187 | J188: 0
E189: 188 | J189: 0
E190: 189 | J190: 0
E191: 190 | J191: 0
E192: 191 | J192: 0
E193: 192 | J193: 0
E194: 193 | J194: 0
E195: 194 | J195: 0
E196: 195 | J196: 0
E197: 196 | J197: 0
E198: 197 | J198: 0
E199: 198 | J199: 0
E200: 199 | J200: =IF(OR(H200=5,H200=10, H200=15, H200="BP",H200="SCR"),"NT",I200) -> 0
... 101 more rows

Sheet Youth
A1: Futurity | B1: Der | C1: Age Inct. | D1: BBR | E1: Draw | F1: Rider Name | G1: Horse Name | H1: Pen | I1: Time | J1: Placing | K1: Money Earned
E2: 1 | F2: Tristan Bowles | G2: Short Okie Lena | I2: 15.804 | J2: 1D 1st | K2: 338
E3: 2 | F3: Emily Wilkins | G3: Shake It For Tina | I3: 16.149 | J3: 1D 2nd | K3: 226
E4: 3 | F4: Aspen Adams | G4: Credit The Gin | I4: 16.266 | J4: 2D 1st | K4: 202
E5: 4 | F5: Emily Welch | G5: Blazin Bay | I5: 16.275 | J5: 2D 2nd | K5: 121
E6: 5 | F6: Samantha Willoughby | G6: Moose On The Loose | I6: 16.366 | J6: 2D 3rd | K6: 94
E7: 6 | F7: Jolie Smith | G7: Ms Hollywood Delight | I7: 16.396
E8: 7 | F8: Hadley Durfey | G8: Delightful Brownies | I8: 16.501
E9: 8 | F9: Grace Gardiner | G9: Eye On Fame | I9: 16.555
E10: 9 | F10: Grace Gardiner | G10: Firewater Kool Eyes | I10: 16.621
E11: 10 | F11: McKenzie Jo Brown | G11: Jae Supreme Lena | I11: 16.754
E12: 11 | F12: Torie Bush | G12: Total Co Motion | I12: 16.792
E13: 12 | F13: Samantha Willoughby | G13: Fabulous Twister | I13: 16.825 | J13: 3D 1st | K13: 134
E14: 13 | F14: Laurel Allred | G14: Quicks Blue Peppy | I14: 16.835 | J14: 3D 2nd | K14: 81
E15: 14 | F15: Kimberlee Littlejohn | G15: ICR Painted Chex | I15: 16.87 | J15: 3D 3rd | K15: 54
E16: 15 | F16: Samantha Willoughby | G16: Cash | I16: 16.878
E17: 16 | F17: Emily Wilkins | G17: Stickin Ta Fame | I17: 16.926
E18: 17 | F18: Jolie Smith | G18: Bartender Nics | I18: 16.956
E19: 18 | F19: Kimberly Steffen | G19: Frosted Country | I19: 17
E20: 19 | F20: Katy Barrett | G20: Breeze Of Sonitalena | I20: 17.062
E21: 20 | F21: Raedyn Brown | G21: Booger Texas Style | I21: 17.073
E22: 21 | F22: Makayla Kiser | G22: Bell | I22: 17.135
E23: 22 | F23: Laurel Allred | G23: Rocket Bingoman | I23: 17.259 | J23: 4D 1st | K23: 101
E24: 23 | F24: Makayla Kiser | G24: Huckleberry | I24: 17.281 | J24: 4D 2nd | K24: 60
E25: 24 | F25: Kimberly Steffen | G25: DJ Chicolena Katie | I25: 17.288 | J25: 4D 3rd | K25: 40
E26: 25 | F26: Trinity Joiner | G26: Highonbrownwhiskey | I26: 17.348
E27: 26 | F27: Hadley Durfey | G27: One Smooth Kelly | I27: 17.351
E28: 27 | F28: Sterling Hopkins | G28: Bling | I28: 17.407
E29: 28 | F29: Madelyn Taylor | G29: Specks Boston Velvet | I29: 17.637
E30: 29 | F30: Madeleine Moll | G30: Vibrant Stylish Chic | I30: 17.743
E31: 30 | F31: Addison Steed | G31: Commander | I31: 17.748
E32: 31 | F32: Madeleine Moll | G32: Gear'Em Up Nic | I32: 17.856
E33: 32 | F33: Walter Wolf | G33: Liberty | I33: 18.043
E34: 33 | F34: Lili Weaver | G34: Hard Knock Life | I34: broken
E35: 34 | F35: Caleb Cline | G35: Guys Dashing Jet | I35: nt15.796
E36: 35 | F36: Emily Wilkins | G36: Chasin Easy Money | I36: nt15.859
E37: 36 | F37: Brianna Woodmansee | G37: AH Mias Cowboy | I37: nt16.156
E38: 37 | F38: Grace Gardiner | G38: Firewater Guy | I38: nt16.346
E39: 38 | F39: Josie Hartmann | G39: Hes Honor | I39: nt16.564
E40: 39 | F40: Kate Neill | G40: Dox Maga Magnolia | I40: nt16.683
E41: 40 | F41: Torie Bush | G41: Wacky Wood | I41: nt16.989
E42: 41 | F42: Jadi Jones | G42: Vegas | I42: nt17.018
E43: 42 | F43: Kate Neill | G43: NF French Tigger | I43: nt17.591
E44: 43 | F44: Taylor Hice | G44: Mac | I44: nt17.734
E45: 44 | F45: Haley King | G45: Playboy | I45: nt17.813
E46: 45 | F46: Josie Teague | I46: nt17.884
E47: 46 | F47: Aspen Adams | G47: Reba | I47: nt18.125
E48: 47 | F48: Caleb Cline | G48: SR Moonshine On Rocks | I48: nt18.468
E49: 48 | F49: Caleb Cline | G49: Jade Ta Fame | I49: nt18.963
E50: 49
E51: 50
E52: 51
E53: 52
E54: 53
E55: 54
E56: 55
E57: 56
E58: 57
E59: 58
E60: 59
E61: 60
E62: 61
E63: 62
E64: 63
E65: 64
E66: 65
E67: 66
E68: 67
E69: 68
E70: 69
E71: 70
E72: 71
E73: 72
E74: 73
E75: 74
E76: 75
E77: 76
E78: 77
E79: 78
E80: 79
E81: 80
E82: 81
E83: 82
E84: 83
E85: 84
E86: 85
E87: 86
E88: 87
E89: 88
E90: 89
E91: 90
E92: 91
E93: 92
E94: 93
E95: 94
E96: 95
E97: 96
E98: 97
E99: 98
E100: 99
E101: 100
E102: 101
E103: 102
E104: 103
E105: 104
E106: 105
E107: 106
E108: 107
E109: 108
E110: 109
E111: 110
E112: 111
E113: 112
E114: 113
E115: 114
E116: 115
E117: 116
E118: 117
E119: 118
E120: 119
E121: 120
E122: 121
E123: 122
E124: 123
E125: 124
E126: 125
E127: 126
E128: 127
E129: 128
E130: 129
E131: 130
E132: 131
E133: 132
E134: 133
E135: 134
E136: 135
E137: 136
E138: 137
E139: 138
E140: 139
E141: 140
E142: 141
E143: 142
E144: 143
E145: 144
E146: 145
E147: 146
E148: 147
E149: 148
E150: 149
E151: 150
E152: 151
E153: 152
E154: 153
E155: 154
E156: 155
E157: 156
E158: 157
E159: 158
E160: 159
E161: 160
E162: 161
E163: 162
E164: 163
E165: 164
E166: 165
E167: 166
E168: 167
E169: 168
E170: 169
E171: 170
E172: 171
E173: 172
E174: 173
E175: 174
E176: 175
E177: 176
E178: 177
E179: 178
E180: 179
E181: 180
E182: 181
E183: 182
E184: 183
E185: 184
E186: 185
E187: 186
E188: 187
E189: 188
E190: 189
E191: 190
E192: 191
E193: 192
E194: 193
E195: 194
E196: 195
E197: 196
E198: 197
E199: 198
E200: 199
... 101 more rows

Sheet Derby
A1: Futurity | B1: Der | C1: Age Inct. | D1: BBR | E1: Draw | F1: Rider Name | G1: Horse Name | H1: c/o | I1: Time | J1: Final Time | K1: Placing | L1: Money Earned
E2: 1 | F2: Cassidy Teague | G2: Tres Socks | I2: 15.712 | K2: 1st | L2: 312
E3: 2 | F3: SHeaLynn McConnel | G3: Smooth N Heavenly | I3: 15.732 | K3: 2nd | L3: 260
E4: 3 | F4: Emma Abbott | G4: Rr Too Slick Eye Mist | I4: 15.874 | K4: 3rd | L4: 208
E5: 4 | F5: Billie Ann Harmon | G5: Me Flingin Diamonds | I5: 15.89 | K5: 4th | L5: 156
E6: 5 | F6: Ryann Pedone | G6: Streakers Queen | I6: 15.919 | K6: 5th | L6: 104
E7: 6 | F7: Brittany Pierson | G7: CF Dash N Dirty | I7: 15.999
E8: 7 | F8: Ashley Schafer | G8: French Streaking Slew | I8: 16.166
E9: 8 | F9: Lauren Strough | G9: Dineros Spare Change | I9: 16.216
E10: 9 | F10: Ashley Schafer | G10: Bobby McGee | I10: 16.277
E11: 10 | F11: Phillip Kenyon | G11: Make It A Mojito | I11: 16.506
E12: 11 | F12: Savanna Morgan | G12: Bout To Get Reckless | I12: 16.523
E13: 12 | F13: Jessica Mullins | G13: Kakunamatadi | I13: 16.911
E14: 13 | F14: Tiffany Lujan | G14: VF Designer Pants | I14: 17.413
E15: 14 | F15: Tiffany Lujan | G15: Chase My Ace | I15: 18.243
E16: 15 | F16: Stevi Hillman | G16: DTF Texas Moon | I16: nt15.967
E17: 16 | F17: Martha Jordan | G17: MV Fury Of The Fame | I17: nt16.128
E18: 17 | F18: Krista Whitley | G18: Fabulace Fame | I18: nt16.373
E19: 18 | F19: Nisa Berry | G19: A Kings Fmaous Fling | I19: nt16.388 | J19: =IF(OR(H19=5,H19=10, H19=15, H19="BP",H19="SCR"),"NT",I19) -> nt16.388
E20: 19 | F20: Jamie Olsen | G20: Miss Famous Beduino | I20: nt16.474 | J20: nt16.474
E21: 20 | F21: Christi Durfey | G21: Jess Blazin Otoe | I21: nt16.493 | J21: nt16.493
E22: 23 | F22: Brittany Pierson | G22: Guyko | I22: nt16.550 | J22: nt16.550
E23: 24 | F23: Wyatt Paul | G23: FC Strait Cajun | I23: nt17.781 | J23: nt17.781
E24: 25 | F24: Caleb Cline | G24: SR Moonshine On Rocks | I24: nt18.468 | J24: nt18.468
E25: 26 | F25: Caleb Cline | G25: Jade Ta Fame | I25: nt18.963 | J25: nt18.963
E26: 27 | J26: 0
E27: 28 | J27: 0
E28: 29 | J28: 0
E29: 30 | J29: 0
E30: 31 | J30: 0
E31: 32 | J31: 0
E32: 33 | J32: 0
E33: 34 | J33: 0
E34: 35 | J34: 0
E35: 36 | J35: 0
E36: 37 | J36: 0
E37: 38 | J37: 0
E38: 39 | J38: 0
E39: 40 | J39: 0
E40: 41 | J40: 0
E41: 42 | J41: 0
E42: 43 | J42: 0
E43: 44 | J43: 0
E44: 45 | J44: 0
E45: 46 | J45: 0
E46: 47 | J46: 0
E47: 48 | J47: 0
E48: 49 | J48: 0
E49: 50 | J49: 0
E50: 51 | J50: 0
E51: 52 | J51: 0
E52: 53 | J52: 0
E53: 54 | J53: 0
E54: 55 | J54: 0
E55: 56 | J55: 0
E56: 57 | J56: 0
E57: 58 | J57: 0
E58: 59 | J58: 0
E59: 60 | J59: 0
E60: 61 | J60: 0
E61: 62 | J61: 0
E62: 63 | J62: 0
E63: 64 | J63: 0
E64: 65 | J64: 0
E65: 66 | J65: 0
E66: 67 | J66: 0
E67: 68 | J67: 0
E68: 69 | J68: 0
E69: 70 | J69: 0
E70: 71 | J70: 0
E71: 72 | J71: 0
E72: 73 | J72: 0
E73: 74 | J73: 0
E74: 75 | J74: 0
E75: 76 | J75: 0
E76: 77 | J76: 0
E77: 78 | J77: 0
E78: 79 | J78: 0
E79: 80 | J79: 0
E80: 81 | J80: =IF(OR(H80=5,H80=10, H80=15, H80="BP",H80="SCR"),"NT",I80) -> 0
E81: 82 | J81: 0
E82: 83 | J82: 0
E83: 84 | J83: 0
E84: 85 | J84: 0
E85: 86 | J85: 0
E86: 87 | J86: 0
E87: 88 | J87: 0
E88: 89 | J88: 0
E89: 90 | J89: 0
E90: 91 | J90: 0
E91: 92 | J91: 0
E92: 93 | J92: 0
E93: 94 | J93: 0
E94: 95 | J94: 0
E95: 96 | J95: 0
E96: 97 | J96: 0
E97: 98 | J97: 0
E98: 99 | J98: 0
E99: 100 | J99: 0
E100: 101 | J100: 0
E101: 102 | J101: 0
E102: 103 | J102: 0
E103: 104 | J103: 0
E104: 105 | J104: 0
E105: 106 | J105: 0
E106: 107 | J106: 0
E107: 108 | J107: 0
E108: 109 | J108: 0
E109: 110 | J109: 0
E110: 111 | J110: 0
E111: 112 | J111: 0
E112: 113 | J112: 0
E113: 114 | J113: 0
E114: 115 | J114: 0
E115: 116 | J115: 0
E116: 117 | J116: 0
E117: 118 | J117: 0
E118: 119 | J118: 0
E119: 120 | J119: 0
E120: 121 | J120: 0
E121: 122 | J121: 0
E122: 123 | J122: 0
E123: 124 | J123: 0
E124: 125 | J124: 0
E125: 126 | J125: 0
E126: 127 | J126: 0
E127: 128 | J127: 0
E128: 129 | J128: 0
E129: 130 | J129: 0
E130: 131 | J130: 0
E131: 132 | J131: 0
E132: 133 | J132: 0
E133: 134 | J133: 0
E134: 135 | J134: 0
E135: 136 | J135: 0
E136: 137 | J136: 0
E137: 138 | J137: 0
E138: 139 | J138: 0
E139: 140 | J139: 0
E140: 141 | J140: 0
E141: 142 | J141: 0
E142: 143 | J142: 0
E143: 144 | J143: 0
E144: 145 | J144: =IF(OR(H144=5,H144=10, H144=15, H144="BP",H144="SCR"),"NT",I144) -> 0
E145: 146 | J145: 0
E146: 147 | J146: 0
E147: 148 | J147: 0
E148: 149 | J148: 0
E149: 150 | J149: 0
E150: 151 | J150: 0
E151: 152 | J151: 0
E152: 153 | J152: 0
E153: 154 | J153: 0
E154: 155 | J154: 0
E155: 156 | J155: 0
E156: 157 | J156: 0
E157: 158 | J157: 0
E158: 159 | J158: 0
E159: 160 | J159: 0
E160: 161 | J160: 0
E161: 162 | J161: 0
E162: 163 | J162: 0
E163: 164 | J163: 0
E164: 165 | J164: 0
E165: 166 | J165: 0
E166: 167 | J166: 0
E167: 168 | J167: 0
E168: 169 | J168: 0
E169: 170 | J169: 0
E170: 171 | J170: 0
E171: 172 | J171: 0
E172: 173 | J172: 0
E173: 174 | J173: 0
E174: 175 | J174: 0
E175: 176 | J175: 0
E176: 177 | J176: 0
E177: 178 | J177: 0
E178: 179 | J178: 0
E179: 180 | J179: 0
E180: 181 | J180: 0
E181: 182 | J181: 0
E182: 183 | J182: 0
E183: 184 | J183: 0
E184: 185 | J184: 0
E185: 186 | J185: 0
E186: 187 | J186: 0
E187: 188 | J187: 0
E188: 189 | J188: 0
E189: 190 | J189: 0
E190: 191 | J190: 0
E191: 192 | J191: 0
E192: 193 | J192: 0
E193: 194 | J193: 0
E194: 195 | J194: 0
E195: 196 | J195: 0
E196: 197 | J196: 0
E197: 198 | J197: 0
E198: 199 | J198: 0
E199: 200 | J199: 0
E200: 201 | J200: 0
... 99 more rows

Sheet High Stakes
A1: Futurity | B1: Der | C1: Age Inct. | D1: BBR | E1: Draw | F1: Rider Name | G1: Horse Name | H1: c/o | I1: Time | J1: Final Time | K1: Placing | L1: Money Earned
E2: 1 | F2: Stevi Hillman | G2: Quatro Fame | I2: 15.665 | K2: 1D 1st | L2: 432
E3: 2 | F3: Cassidy Teague | G3: Tres Socks | I3: 15.712 | K3: 1D 2nd | L3: 288
E4: 3 | F4: SHeaLynn McConnel | G4: Smooth N Heavenly | I4: 15.732
E5: 4 | F5: Caroline Kelly | G5: Hesa Dashin Dreamer | I5: 15.742
E6: 5 | F6: Andrea Busby | G6: Famous Heartbreaker | I6: 15.822
E7: 6 | F7: Jimmie Smith | G7: Marthas Bullion | I7: 15.891
E8: 7 | F8: Alyssa Urbanek | G8: Fueled With Dinero | I8: nt16.048
E9: 8 | F9: Jimmie Smith | G9: Lever Action | I9: nt16.129
E10: 9 | F10: Rylee Hardin | G10: Tiffany | I10: nt16.936
E11: 10
E12: 11
E13: 12
E14: 13
E15: 14
E16: 15
E17: 16
E18: 17
E19: 18
E20: 19
E21: 20
E22: 21
E23: 22
E24: 23
E25: 24
E26: 25
E27: 26
E28: 27
E29: 28
E30: 29
E31: 30
E32: 31
E33: 32
E34: 33
E35: 34
E36: 35
E37: 36
E38: 37
E39: 38
E40: 39 | J40: =IF(OR(H40=5,H40=10, H40=15, H40="BP",H40="SCR"),"NT",I40) -> 0
E41: 40 | J41: 0
E42: 41 | J42: 0
E43: 42 | J43: 0
E44: 43 | J44: 0
E45: 44 | J45: 0
E46: 45 | J46: 0
E47: 46 | J47: 0
E48: 47 | J48: 0
E49: 48 | J49: 0
E50: 49 | J50: 0
E51: 50 | J51: 0
E52: 51 | J52: 0
E53: 52 | J53: 0
E54: 53 | J54: 0
E55: 54 | J55: 0
E56: 55 | J56: 0
E57: 56 | J57: 0
E58: 57 | J58: 0
E59: 58 | J59: 0
E60: 59 | J60: 0
E61: 60 | J61: 0
E62: 61 | J62: 0
E63: 62 | J63: 0
E64: 63 | J64: 0
E65: 64 | J65: 0
E66: 65 | J66: 0
E67: 66 | J67: 0
E68: 67 | J68: 0
E69: 68 | J69: 0
E70: 69 | J70: 0
E71: 70 | J71: 0
E72: 71 | J72: 0
E73: 72 | J73: 0
E74: 73 | J74: 0
E75: 74 | J75: 0
E76: 75 | J76: 0
E77: 76 | J77: 0
E78: 77 | J78: 0
E79: 78 | J79: 0
E80: 79 | J80: 0
E81: 80 | J81: 0
E82: 81 | J82: 0
E83: 82 | J83: 0
E84: 83 | J84: 0
E85: 84 | J85: 0
E86: 85 | J86: 0
E87: 86 | J87: 0
E88: 87 | J88: 0
E89: 88 | J89: 0
E90: 89 | J90: 0
E91: 90 | J91: 0
E92: 91 | J92: 0
E93: 92 | J93: 0
E94: 93 | J94: 0
E95: 94 | J95: 0
E96: 95 | J96: 0
E97: 96 | J97: 0
E98: 97 | J98: 0
E99: 98 | J99: 0
E100: 99 | J100: 0
E101: 100 | J101: 0
E102: 101 | J102: 0
E103: 102 | J103: 0
E104: 103 | J104: =IF(OR(H104=5,H104=10, H104=15, H104="BP",H104="SCR"),"NT",I104) -> 0
E105: 104 | J105: 0
E106: 105 | J106: 0
E107: 106 | J107: 0
E108: 107 | J108: 0
E109: 108 | J109: 0
E110: 109 | J110: 0
E111: 110 | J111: 0
E112: 111 | J112: 0
E113: 112 | J113: 0
E114: 113 | J114: 0
E115: 114 | J115: 0
E116: 115 | J116: 0
E117: 116 | J117: 0
E118: 117 | J118: 0
E119: 118 | J119: 0
E120: 119 | J120: 0
E121: 120 | J121: 0
E122: 121 | J122: 0
E123: 122 | J123: 0
E124: 123 | J124: 0
E125: 124 | J125: 0
E126: 125 | J126: 0
E127: 126 | J127: 0
E128: 127 | J128: 0
E129: 128 | J129: 0
E130: 129 | J130: 0
E131: 130 | J131: 0
E132: 131 | J132: 0
E133: 132 | J133: 0
E134: 133 | J134: 0
E135: 134 | J135: 0
E136: 135 | J136: 0
E137: 136 | J137: 0
E138: 137 | J138: 0
E139: 138 | J139: 0
E140: 139 | J140: 0
E141: 140 | J141: 0
E142: 141 | J142: 0
E143: 142 | J143: 0
E144: 143 | J144: 0
E145: 144 | J145: 0
E146: 145 | J146: 0
E147: 146 | J147: 0
E148: 147 | J148: 0
E149: 148 | J149: 0
E150: 149 | J150: 0
E151: 150 | J151: 0
E152: 151 | J152: 0
E153: 152 | J153: 0
E154: 153 | J154: 0
E155: 154 | J155: 0
E156: 155 | J156: 0
E157: 156 | J157: 0
E158: 157 | J158: 0
E159: 158 | J159: 0
E160: 159 | J160: 0
E161: 160 | J161: 0
E162: 161 | J162: 0
E163: 162 | J163: 0
E164: 163 | J164: 0
E165: 164 | J165: 0
E166: 165 | J166: 0
E167: 166 | J167: 0
E168: 167 | J168: =IF(OR(H168=5,H168=10, H168=15, H168="BP",H168="SCR"),"NT",I168) -> 0
E169: 168 | J169: 0
E170: 169 | J170: 0
E171: 170 | J171: 0
E172: 171 | J172: 0
E173: 172 | J173: 0
E174: 173 | J174: 0
E175: 174 | J175: 0
E176: 175 | J176: 0
E177: 176 | J177: 0
E178: 177 | J178: 0
E179: 178 | J179: 0
E180: 179 | J180: 0
E181: 180 | J181: 0
E182: 181 | J182: 0
E183: 182 | J183: 0
E184: 183 | J184: 0
E185: 184 | J185: 0
E186: 185 | J186: 0
E187: 186 | J187: 0
E188: 187 | J188: 0
E189: 188 | J189: 0
E190: 189 | J190: 0
E191: 190 | J191: 0
E192: 191 | J192: 0
E193: 192 | J193: 0
E194: 193 | J194: 0
E195: 194 | J195: 0
E196: 195 | J196: 0
E197: 196 | J197: 0
E198: 197 | J198: 0
E199: 198 | J199: 0
E200: 199 | J200: 0
... 101 more rows

Sheet Futurity
A1: Futurity | B1: Der | C1: Age Inct. | D1: BBR | E1: Draw | F1: Rider Name | G1: Horse Name | H1: c/o | I1: Time | J1: Final Time | K1: Placing | L1: Money Earned
E2: 1 | F2: Billie Ann Harmon | G2: Famous Disco Bugs | I2: 15.885 | K2: 1D 1st | L2: 522
E3: 2 | F3: Kelsey Treharne (Treehorn) | G3: VQ Nonstop Stinson | I3: 16.096 | K3: 1D 2nd | L3: 435
E4: 3 | F4: Joy Wargo | G4: Wildchildsgotcashuno | I4: 16.188 | K4: 1D 3rd | L4: 348
E5: 4 | F5: Kelsey Treharne (Treehorn) | G5: Aintgotnothinonme | I5: 16.189 | K5: 1D 4th | L5: 261
E6: 5 | F6: Stormi Pittman | G6: Shake It Frenchman | I6: 16.2 | K6: 1D 5th | L6: 174
E7: 6 | F7: Wyatt Paul | G7: MJ Condo Cowboy | I7: 16.35
E8: 7 | F8: Kelsey Treharne (Treehorn) | G8: Firewater Streakin | I8: 16.382
E9: 8 | F9: Abigail Plants | G9: Playing In Traffic | I9: 16.428
E10: 9 | F10: Kelsey Treharne (Treehorn) | G10: VF Rosie Stinson | I10: 16.503
E11: 10 | F11: Kylie Bowles | G11: Slick A Lena | I11: 16.519
E12: 11 | F12: Ben McDonnell | G12: AJ Shakeitlike Elvis | I12: 16.519
E13: 12 | F13: Billie Ann Harmon | G13: Zero Judgement | I13: 16.528
E14: 13 | F14: Ryann Pedone | G14: Kool Rocket Man | I14: 16.539
E15: 14 | F15: Kelsey Treharne (Treehorn) | G15: VF Silver Design | I15: 16.541
E16: 15 | F16: Whitney Godinez | G16: Chilla On The Rocks | I16: 16.578
E17: 16 | F17: Stormi Pittman | G17: Bar S Streaking Taz | I17: 16.623
E18: 17 | F18: Wendy Suhn | G18: Jess B Gone | I18: 16.628
E19: 18 | F19: Haley Thorne | G19: Superflyandfamous | I19: 16.653
E20: 19 | F20: Kelsey Treharne (Treehorn) | G20: The First Lady | I20: 16.674
E21: 20 | F21: Kelsey Treharne (Treehorn) | G21: VF Wheely Cool | I21: 16.718
E22: 21 | F22: Joy Wargo | G22: Starrin Baby Rose | I22: 16.848
E23: 22 | F23: Lauren Strough | G23: Drifting For Dineros | I23: 16.853
E24: 23 | F24: Abigail Plants | G24: KN Baileys Sidecar | I24: 16.861
E25: 24 | F25: Abigail Plants | G25: KN Stopbuginmebailey | I25: 17.037 | K25: 2D 1st | L25: 348
E26: 25 | F26: Ryann Pedone | G26: Sweet Steven | I26: 17.102 | K26: 2D 2nd | L26: 290
E27: 26 | F27: Louis Paradis | G27: All U Need Is Speed | I27: 17.346 | K27: 2D 3rd | L27: 232
E28: 27 | F28: Kaylyn Smith | G28: Bet She Can Fly | I28: 17.366 | K28: 2D 4th | L28: 174
E29: 28 | F29: Riley Fountain | G29: Dixee Land Delight | I29: 17.412 | K29: 2D 5th | L29: 116
E30: 29 | F30: Lauren Strough | G30: Marthas Slick Moons | I30: 17.49
E31: 30 | F31: Jackie Hartt | G31: RP Dashin Star | I31: 17.606
E32: 31 | F32: Shelby Scott | G32: RJ Miss Gracie Gal | I32: 17.985
E33: 32 | F33: Jade Crago | G33: Trust Your Journey | I33: 18.129
E34: 33 | F34: Kelsey Treharne (Treehorn) | G34: A Legendary Fling | I34: 18.234
E35: 34 | F35: Jolene Jones | G35: Perks Fame Aint Easy | I35: nt
E36: 35 | F36: Kelsey Treharne (Treehorn) | G36: VF Wishbone Red | I36: nt
E37: 36 | F37: Kelsey Treharne (Treehorn) | G37: TR Lying Badger | I37: nt16.339
E38: 37 | F38: Joy Wargo | G38: JL Hot Rocs | I38: nt16.869
E39: 38 | F39: Emma Wildiesen | G39: I Got Your Seis | I39: nt17.145
E40: 39 | F40: Tallaney Clark | G40: Perks Hickory Cat | I40: nt17.308
E41: 40 | F41: Ryann Pedone | G41: Money Beea Blaizin | I41: nt17.332
E42: 41
E43: 42
E44: 43
E45: 44
E46: 45
E47: 46
E48: 47
E49: 48
E50: 49
E51: 50
E52: 51
E53: 52
E54: 53
E55: 54
E56: 55
E57: 56
E58: 57
E59: 58
E60: 59
E61: 60
E62: 61
E63: 62
E64: 63
E65: 64
E66: 65
E67: 66
E68: 67
E69: 68
E70: 69
E71: 70
E72: 71
E73: 72
E74: 73
E75: 74
E76: 75
E77: 76 | J77: =IF(OR(H77=5,H77=10, H77=15, H77="BP",H77="SCR"),"NT",I77) -> 0
E78: 77 | J78: 0
E79: 78 | J79: 0
E80: 79 | J80: 0
E81: 80 | J81: 0
E82: 81 | J82: 0
E83: 82 | J83: 0
E84: 83 | J84: 0
E85: 84 | J85: 0
E86: 85 | J86: 0
E87: 86 | J87: 0
E88: 87 | J88: 0
E89: 88 | J89: 0
E90: 89 | J90: 0
E91: 90 | J91: 0
E92: 91 | J92: 0
E93: 92 | J93: 0
E94: 93 | J94: 0
E95: 94 | J95: 0
E96: 95 | J96: =IF(OR(H96=5,H96=10, H96=15, H96="BP",H96="SCR"),"NT",I96) -> 0
E97: 96 | J97: 0
E98: 97 | J98: 0
E99: 98 | J99: 0
E100: 99 | J100: 0
E101: 100 | J101: 0
E102: 101 | J102: 0
E103: 102 | J103: 0
E104: 103 | J104: 0
E105: 104 | J105: 0
E106: 105 | J106: 0
E107: 106 | J107: 0
E108: 107 | J108: 0
E109: 108 | J109: 0
E110: 109 | J110: 0
E111: 110 | J111: 0
E112: 111 | J112: 0
E113: 112 | J113: 0
E114: 113 | J114: 0
E115: 114 | J115: 0
E116: 115 | J116: 0
E117: 116 | J117: 0
E118: 117 | J118: 0
E119: 118 | J119: 0
E120: 119 | J120: 0
E121: 120 | J121: 0
E122: 121 | J122: 0
E123: 122 | J123: 0
E124: 123 | J124: 0
E125: 124 | J125: 0
E126: 125 | J126: 0
E127: 126 | J127: 0
E128: 127 | J128: 0
E129: 128 | J129: 0
E130: 129 | J130: 0
E131: 130 | J131: 0
E132: 131 | J132: 0
E133: 132 | J133: 0
E134: 133 | J134: 0
E135: 134 | J135: 0
E136: 135 | J136: 0
E137: 136 | J137: 0
E138: 137 | J138: 0
E139: 138 | J139: 0
E140: 139 | J140: 0
E141: 140 | J141: 0
E142: 141 | J142: 0
E143: 142 | J143: 0
E144: 143 | J144: 0
E145: 144 | J145: 0
E146: 145 | J146: 0
E147: 146 | J147: 0
E148: 147 | J148: 0
E149: 148 | J149: 0
E150: 149 | J150: 0
E151: 150 | J151: 0
E152: 151 | J152: 0
E153: 152 | J153: 0
E154: 153 | J154: 0
E155: 154 | J155: 0
E156: 155 | J156: 0
E157: 156 | J157: 0
E158: 157 | J158: 0
E159: 158 | J159: 0
E160: 159 | J160: =IF(OR(H160=5,H160=10, H160=15, H160="BP",H160="SCR"),"NT",I160) -> 0
E161: 160 | J161: 0
E162: 161 | J162: 0
E163: 162 | J163: 0
E164: 163 | J164: 0
E165: 164 | J165: 0
E166: 165 | J166: 0
E167: 166 | J167: 0
E168: 167 | J168: 0
E169: 168 | J169: 0
E170: 169 | J170: 0
E171: 170 | J171: 0
E172: 171 | J172: 0
E173: 172 | J173: 0
E174: 173 | J174: 0
E175: 174 | J175: 0
E176: 175 | J176: 0
E177: 176 | J177: 0
E178: 177 | J178: 0
E179: 178 | J179: 0
E180: 179 | J180: 0
E181: 180 | J181: 0
E182: 181 | J182: 0
E183: 182 | J183: 0
E184: 183 | J184: 0
E185: 184 | J185: 0
E186: 185 | J186: 0
E187: 186 | J187: 0
E188: 187 | J188: 0
E189: 188 | J189: 0
E190: 189 | J190: 0
E191: 190 | J191: 0
E192: 191 | J192: 0
E193: 192 | J193: 0
E194: 193 | J194: 0
E195: 194 | J195: 0
E196: 195 | J196: 0
E197: 196 | J197: 0
E198: 197 | J198: 0
E199: 198 | J199: 0
E200: 199 | J200: 0
... 101 more rows

Sheet 12 & Under (hidden)
A1: Futurity | B1: Der | C1: Age Inct. | D1: R/O | E1: Draw | F1: Rider Name | G1: Horse Name | H1: Time | I1: Final Time | J1: Placing | K1: Money Earned
E33: 32
E34: 33
E35: 34
E36: 35
E37: 36
E38: 37
E39: 38
E40: 39
E41: 40
E42: 41
E43: 42
E44: 43
E45: 44
E46: 45
E47: 46
E48: 47
E49: 48
E50: 49
E51: 50
E52: 51
E53: 52
E54: 53
E55: 54
E56: 55
E57: 56
E58: 57
E59: 58
E60: 59
E61: 60
E62: 61
E63: 62
E64: 63
E65: 64
E66: 65
E67: 66
E68: 67
E69: 68
E70: 69
E71: 70
E72: 71
E73: 72
E74: 73
E75: 74
E76: 75
E77: 76
E78: 77
E79: 78
E80: 79
E81: 80
E82: 81
E83: 82
E84: 83
E85: 84
E86: 85
E87: 86
E88: 87
E89: 88
E90: 89
E91: 90
E92: 91
E93: 92
E94: 93
E95: 94
E96: 95
E97: 96
E98: 97
E99: 98
E100: 99
E101: 100
E102: 101
E103: 102
E104: 103
E105: 104
E106: 105
E107: 106
E108: 107
E109: 108
E110: 109
E111: 110
E112: 111
E113: 112
E114: 113
E115: 114
E116: 115
E117: 116
E118: 117
E119: 118
E120: 119
E121: 120
E122: 121
E123: 122
E124: 123
E125: 124
E126: 125
E127: 126
E128: 127
E129: 128
E130: 129
E131: 130
E132: 131
E133: 132
E134: 133
E135: 134
E136: 135
E137: 136
E138: 137
E139: 138
E140: 139
E141: 140
E142: 141
E143: 142
E144: 143
E145: 144
E146: 145
E147: 146
E148: 147
E149: 148
E150: 149
E151: 150
E152: 151
E153: 152
E154: 153
E155: 154
E156: 155
E157: 156
E158: 157
E159: 158
E160: 159
E161: 160
E162: 161
E163: 162
E164: 163
E165: 164
E166: 165
E167: 166
E168: 167
E169: 168
E170: 169
E171: 170
E172: 171
E173: 172
E174: 173
E175: 174
E176: 175
E177: 176
E178: 177
E179: 178
E180: 179
E181: 180
E182: 181
E183: 182
E184: 183
E185: 184
E186: 185
E187: 186
E188: 187
E189: 188
E190: 189
E191: 190
E192: 191
E193: 192
E194: 193
E195: 194
E196: 195
E197: 196
E198: 197
E199: 198
E200: 199
E201: 200
E202: 201
E203: 202
E204: 203
E205: 204
E206: 205
E207: 206
E208: 207
E209: 208
E210: 209
E211: 210
E212: 211
E213: 212
E214: 213
E215: 214
E216: 215
E217: 216
E218: 217
E219: 218
E220: 219
E221: 220
E222: 221
E223: 222
E224: 223
E225: 224
E226: 225
E227: 226
E228: 227
E229: 228
E230: 229
E231: 230
... 70 more rows

Sheet 10&under
A1: Draw | B1: Rider Name | C1: Horse Name | D1: Time | E1: Final Time | F1: Placing | G1: Money Earned
A2: 1 | B2: RuthAnn Hutchison | C2: Winnie | D2: 18.018
A3: 2 | B3: Peyton King | D3: 18.498
A4: 3 | B4: Coralee Williams | C4: Chip | D4: 20.14
A5: 4 | B5: Bryson Rawson | D5: nt19.321
A6: 5 | B6: Brynlee DeWynter | C6: Angel | D6: broken
A7: 6 | B7: Veilleux?
A8: 7 | B8: Wyatt Williams | C8: Dennis | D8: 35.107
A9: 8 | B9: Breelyn Black | C9: Poptart | D9: broken
A10: 9 | B10: Hayley King | C10: Vanity
A11: 10 | B11: Kaley Steffen | C11: Cookie | D11: 22.25
A12: 10 | B12: RuthAnn Hutchison | C12: Daffy | D12: broken
A13: 11 | B13: Peyton Smith | C13: Tater | D13: scratch
A14: 12
A15: 13
A16: 14
A17: 15
A18: 16
A19: 17
A20: 18
A21: 19
A22: 20
A23: 21
A24: 22
A25: 23

Sheet BFA 2D Payout (hidden)
A1: BFA 2D Payout
A2: Entry Fee | B2: # Entries | C2: % Payback | D2: Added $ | E2: Total Payout | F2: Each Go
A3: 25 | B3: 19 | C3: 0.8 | D3: 200 | E3: =(A3*$C$3)*B3+D3 -> 580 | F3: 0.3
F4: =$E$3*$F$3 -> 174
A5: $5,000-7,500 Pays 5 Places 4 to 1D 1 to 2D
A6: Placings | B6: 1D | D6: 2D
A7: 1st | B7: =($F$4*$C$7) -> 57.42 | C7: 0.33 | D7: =$F$4*$E$7 -> 12.18 | E7: 0.07
A8: 2nd | B8: =$F$4*$C$8 -> 46.98 | C8: 0.27
A9: 3rd | B9: =$F$4*$C$9 -> 34.8 | C9: 0.2
A10: 4th | B10: =$F$4*$C$10 -> 22.62 | C10: 0.13
A11: Totals | B11: =SUM(B7:B10) -> 161.82 | D11: =SUM(D7:D10) -> 12.18 | E11: =(C7+C8+C9+C10+E7+E8) -> 1
A12: =B11+D11 -> 174
A13: $7,501 - 10,000 Pays 6 Places 4 to 1D, 2 to 2D
A14: Placings | B14: 1D | D14: 2D
A15: 1st | B15: =$F$4*$C$15 -> 50.46 | C15: 0.29 | D15: =$F$4*$E$15 -> 15.66 | E15: 0.09
A16: 2nd | B16: =+$F$4*$C$16 -> 41.76 | C16: 0.24 | D16: =F4*E16 -> 8.7 | E16: 0.05
A17: 3rd | B17: =$F$4*$C$17 -> 33.06 | C17: 0.19
A18: 4th | B18: =$F$4*$C$18 -> 24.36 | C18: 0.14
A19: Totals | B19: =SUM(B15:B18) -> 149.64 | D19: =D16+D15 -> 24.36 | E19: =SUM(C15+C16+C17+C18+E15+E16) -> 1
A20: =D19+B19 -> 174
A21: $10,001 - $15,000 Payes 8 Places 5 to 1D, 3 to 2D
A22: Placings | B22: 1D | D22: 2D
A23: 1st | B23: =F4*C23 -> 41.76 | C23: 0.24 | D23: =F4*E23 -> 12.18 | E23: 0.07
A24: 2nd | B24: =F4*C24 -> 34.8 | C24: 0.2 | D24: =F4*E24 -> 8.7 | E24: 0.05
A25: 3rd | B25: =F4*C25 -> 29.58 | C25: 0.17 | D25: =F4*E25 -> 6.96 | E25: 0.04
A26: 4th | B26: =F4*C26 -> 22.62 | C26: 0.13
A27: 5th | B27: =F4*C27 -> 17.4 | C27: 0.1
A28: Totals | B28: =SUM(B23:B27) -> 146.16 | D28: =SUM(D23:D27) -> 27.84 | E28: =C23+C24+C25+C26+C27+E23+E24+E25 -> 1
A29: =B28+D28 -> 174
A30: $15,001 - $25,000 Payes 11 Places 7 to 1D, 4 to 2D
A31: Placings | B31: 1D | D31: 2D
A32: 1st | B32: =$F$4*C32 -> 36.54 | C32: 0.21 | D32: =$F$4*E32 -> 8.7 | E32: 0.05
A33: 2nd | B33: =$F$4*C33 -> 31.32 | C33: 0.18 | D33: =$F$4*E33 -> 6.96 | E33: 0.04
A34: 3rd | B34: 26.1 | C34: 0.15 | D34: 5.22 | E34: 0.03
A35: 4th | B35: 19.14 | C35: 0.11 | D35: 3.48 | E35: 0.02
A36: 5th | B36: 13.92 | C36: 0.08
A37: 6th | B37: 12.18 | C37: 0.07
A38: 7th | B38: 10.44 | C38: 0.06
A39: Totals | B39: =SUM(B32:B38) -> 149.64 | D39: =SUM(D32:D38) -> 24.36 | E39: =C32+C33+C34+C35+C36+C37+C38+E32+E33+E34+E35 -> 1
A40: =SUM(B39+D39) -> 174
A41: $25,001 - $35,000 Payes 12 Places 8 to 1D, 4 to 2D
A42: Placings | B42: 1D | D42: 2D
A43: 1st | B43: =$F$4*C43 -> 33.06 | C43: 0.19 | D43: =$F$4*E43 -> 8.7 | E43: 0.05
A44: 2nd | B44: =$F$4*C44 -> 26.1 | C44: 0.15 | D44: =$F$4*E44 -> 6.96 | E44: 0.04
A45: 3rd | B45: 20.88 | C45: 0.12 | D45: 5.22 | E45: 0.03
A46: 4th | B46: 17.4 | C46: 0.1 | D46: 3.48 | E46: 0.02
A47: 5th | B47: 15.66 | C47: 0.09
A48: 6th | B48: 13.92 | C48: 0.08
A49: 7th | B49: 12.18 | C49: 0.07
A50: 8th | B50: 10.44 | C50: 0.06
A51: Totals | B51: =SUM(B43:B50) -> 149.64 | D51: =SUM(D43:D46) -> 24.36 | E51: =C43+C44+C45+C46+C47+C48+C49+C50+E43+E44+E45+E46 -> 1
A52: =D51+B51 -> 174

Sheet 2D Payout
A1: 2D Payout
A2: Entry Fee | B2: # Entries | C2: % Payback | D2: Added $ | E2: Total Payout
A3: 75 | B3: 40 | C3: 0.8 | D3: 500 | E3: =(A3*$C$3)*B3+D3 -> 2900
A5: % in each D | B5: 0.6 | C5: 0.4 | D5: Total % = | E5: =SUM(B5:C5) -> 1
B6: 1D | C6: 2D
B7: =(($A$3*$B$3*$C$3*$B$5)+($D$3*$B$5)) -> 1740 | C7: =(($A$3*$B$3*$C$3*$C$5)+($D$3*$C$5)) -> 1160
A8: Totals | B8: =SUM(B7) -> 1740 | C8: =SUM(C7) -> 1160 | D8: =SUM(B8:C8) -> 2900
A10: For 1-7 riders 1 place
A11: Placings | B11: 1D | C11: 2D
A12: 1st | B12: =$B$7*$E$12 -> 1740 | C12: =$C$7*$E$5 -> 1160 | D12: è | E12: 1
A13: Totals | B13: =SUM(B12:B12) -> 1740 | C13: =SUM(C12:C12) -> 1160 | D13: =SUM(B13:C13) -> 2900 | E13: =SUM(E12) -> 1
A15: For 8-11 riders 2 places
A16: Placings | B16: 1D | C16: 2D
A17: 1st | B17: =$B$7*$E$17 -> 1044 | C17: =$C$7*$E$17 -> 696 | D17: è | E17: 0.6
A18: 2nd | B18: =$B$7*$E$18 -> 696 | C18: =$C$7*$E$18 -> 464 | D18: è | E18: 0.4
A19: Totals | B19: =SUM(B17:B18) -> 1740 | C19: =SUM(C17:C18) -> 1160 | D19: =SUM(B19:C19) -> 2900 | E19: =SUM(E17:E18) -> 1
A21: For 12-15 riders 3 places
A22: Placings | B22: 1D | C22: 2D
A23: 1st | B23: =$B$7*$E$23 -> 870 | C23: =$C$7*$E$23 -> 580 | D23: è | E23: 0.5
A24: 2nd | B24: =$B$7*$E$24 -> 522 | C24: =$C$7*$E$24 -> 348 | D24: è | E24: 0.3
A25: 3rd | B25: =$B$7*$E$25 -> 348 | C25: =$C$7*$E$25 -> 232 | D25: è | E25: 0.2
A26: Totals | B26: =SUM(B23:B25) -> 1740 | C26: =SUM(C23:C25) -> 1160 | D26: =SUM(B26:C26) -> 2900 | E26: =SUM(E23:E25) -> 1
A28: For 16-19 riders 4 places
A29: Placings | B29: 1D | C29: 2D
A30: 1st | B30: =$B$7*$E$30 -> 696 | C30: =$C$7*$E$30 -> 464 | D30: è | E30: 0.4
A31: 2nd | B31: =$B$7*$E$31 -> 522 | C31: =$C$7*$E$31 -> 348 | D31: è | E31: 0.3
A32: 3rd | B32: =$B$7*$E$32 -> 348 | C32: =$C$7*$E$32 -> 232 | D32: è | E32: 0.2
A33: 4th | B33: =$B$7*$E$33 -> 174 | C33: =$C$7*$E$33 -> 116 | D33: è | E33: 0.1
A34: Totals | B34: =SUM(B30:B33) -> 1740 | C34: =SUM(C30:C33) -> 1160 | D34: =SUM(B34:C34) -> 2900 | E34: =SUM(E30:E33) -> 1
A36: For 20-23 riders 5 places
A37: Placings | B37: 1D | C37: 2D
A38: 1st | B38: =$B$7*$E$38 -> 522 | C38: =$C$7*$E$38 -> 348 | D38: è | E38: 0.3
A39: 2nd | B39: =$B$7*$E$39 -> 435 | C39: =$C$7*$E$39 -> 290 | D39: è | E39: 0.25
A40: 3rd | B40: =$B$7*$E$40 -> 348 | C40: =$C$7*$E$40 -> 232 | D40: è | E40: 0.2
A41: 4th | B41: =$B$7*$E$41 -> 261 | C41: =$C$7*$E$41 -> 174 | D41: è | E41: 0.15
A42: 5th | B42: =$B$7*$E$42 -> 174 | C42: =$C$7*$E$42 -> 116 | D42: è | E42: 0.1
A43: Totals | B43: =SUM(B38:B42) -> 1740 | C43: =SUM(C38:C42) -> 1160 | D43: =SUM(B43:C43) -> 2900 | E43: =SUM(E38:E42) -> 1
A45: For 24-27 riders 6 places
A46: Placings | B46: 1D | C46: 2D
A47: 1st | B47: =$B$7*$E$47 -> 435 | C47: =$C$7*$E$47 -> 290 | D47: è | E47: 0.25
A48: 2nd | B48: =$B$7*$E$48 -> 348 | C48: =$C$7*$E$48 -> 232 | D48: è | E48: 0.2
A49: 3rd | B49: =$B$7*$E$49 -> 313.2 | C49: =$C$7*$E$49 -> 208.8 | D49: è | E49: 0.18
A50: 4th | B50: =$B$7*$E$50 -> 261 | C50: =$C$7*$E$50 -> 174 | D50: è | E50: 0.15
A51: 5th | B51: =$B$7*$E$51 -> 208.8 | C51: =$C$7*$E$51 -> 139.2 | D51: è | E51: 0.12
A52: 6th | B52: =$B$7*$E$52 -> 174 | C52: =$C$7*$E$52 -> 116 | D52: è | E52: 0.1
A53: Totals | B53: =SUM(B47:B52) -> 1740 | C53: =SUM(C47:C52) -> 1160 | D53: =SUM(B53:C53) -> 2900 | E53: =SUM(E47:E52) -> 1
A55: For 28-31 riders 7 places
A56: Placings | B56: 1D | C56: 2D
A57: 1st | B57: =$B$7*$E$57 -> 382.8 | C57: =$C$7*$E$57 -> 255.2 | D57: è | E57: 0.22
A58: 2nd | B58: =$B$7*$E$58 -> 313.2 | C58: =$C$7*$E$58 -> 208.8 | D58: è | E58: 0.18
A59: 3rd | B59: =$B$7*$E$59 -> 278.4 | C59: =$C$7*$E$59 -> 185.6 | D59: è | E59: 0.16
A60: 4th | B60: =$B$7*$E$60 -> 243.6 | C60: =$C$7*$E$60 -> 162.4 | D60: è | E60: 0.14
A61: 5th | B61: =$B$7*$E$61 -> 208.8 | C61: =$C$7*$E$61 -> 139.2 | D61: è | E61: 0.12
A62: 6th | B62: =$B$7*$E$62 -> 174 | C62: =$C$7*$E$62 -> 116 | D62: è | E62: 0.1
A63: 7th | B63: =$B$7*$E$63 -> 139.2 | C63: =$C$7*$E$63 -> 92.8 | D63: è | E63: 0.08
A64: Totals | B64: =SUM(B57:B63) -> 1740 | C64: =SUM(C57:C63) -> 1160 | D64: =SUM(B64:C64) -> 2900 | E64: =SUM(E57:E63) -> 1
A66: For 32 or more riders 8 places
A67: Placings | B67: 1D | C67: 2D
A68: 1st | B68: =$B$7*$E$68 -> 400.2 | C68: =$C$7*$E$68 -> 266.8 | D68: è | E68: 0.23
A69: 2nd | B69: =$B$7*$E$69 -> 348 | C69: =$C$7*$E$69 -> 232 | D69: è | E69: 0.2
A70: 3rd | B70: =$B$7*$E$70 -> 295.8 | C70: =$C$7*$E$70 -> 197.2 | D70: è | E70: 0.17
A71: 4th | B71: =$B$7*$E$71 -> 243.6 | C71: =$C$7*$E$71 -> 162.4 | D71: è | E71: 0.14
A72: 5th | B72: =$B$7*$E$72 -> 191.4 | C72: =$C$7*$E$72 -> 127.6 | D72: è | E72: 0.11
A73: 6th | B73: =$B$7*$E$73 -> 139.2 | C73: =$C$7*$E$73 -> 92.8 | D73: è | E73: 0.08
A74: 7th | B74: =$B$7*$E$74 -> 87 | C74: =$C$7*$E$74 -> 58 | D74: è | E74: 0.05
A75: 8th | B75: =$B$7*$E$75 -> 34.8 | C75: =$C$7*$E$75 -> 23.2 | D75: è | E75: 0.02
A76: Totals | B76: =SUM(B68:B75) -> 1740 | C76: =SUM(C68:C75) -> 1160 | D76: =SUM(B76:C76) -> 2900 | E76: =SUM(E68:E75) -> 1

Sheet 3D Payout (hidden)
A1: 3D Payout
A2: Entry Fee | B2: # Entries | C2: % Payback | D2: $ From Entry | E2: Added $ | F2: Total Payout
A3: 10 | B3: 3 | C3: 0.8 | D3: =$A$3*$C$3*$B$3 -> 24 | F3: =$D$3+$E$3 -> 24
A5: % in each D | B5: 0.5 | C5: 0.3 | D5: 0.2 | E5: Total % = | F5: =SUM(B5:D5) -> 1
B6: 1D | C6: 2D | D6: 3D
B7: =(($A$3*$B$3*$C$3*$B$5)+($E$3*$B$5)) -> 12 | C7: =(($A$3*$B$3*$C$3*$C$5)+($E$3*$C$5)) -> 7.2 | D7: =(($A$3*$B$3*$C$3*$D$5)+($E$3*$D$5)) -> 4.8
A8: Totals | B8: =SUM(B7) -> 12 | C8: =SUM(C7) -> 7.2 | D8: 4.8 | E8: =SUM(B8:D8) -> 24
A10: For 1-10 riders 1 place
A11: Placings | B11: 1D | C11: 2D | D11: 3D
A12: 1st | B12: =$B$7*$F$12 -> 12 | C12: =$C$7*$F$12 -> 7.2 | D12: =$D$7*$F$12 -> 4.8 | E12: è | F12: 1
A13: Totals | B13: =SUM(B12:B12) -> 12 | C13: =SUM(C12:C12) -> 7.2 | D13: =SUM(D12:D12) -> 4.8 | E13: =SUM(B13:D13) -> 24 | F13: =SUM(F12) -> 1
A15: For 11-15 riders 2 places
A16: Placings | B16: 1D | C16: 2D | D16: 3D
A17: 1st | B17: =$B$7*$F$17 -> 7.2 | C17: =$C$7*$F$17 -> 4.32 | D17: =$D$7*$F$17 -> 2.88 | E17: è | F17: 0.6
A18: 2nd | B18: =$B$7*$F$18 -> 4.8 | C18: =$C$7*$F$18 -> 2.88 | D18: =$D$7*$F$18 -> 1.92 | E18: è | F18: 0.4
A19: Totals | B19: =SUM(B17:B18) -> 12 | C19: =SUM(C17:C18) -> 7.2 | D19: =SUM(D17:D18) -> 4.8 | E19: =SUM(B19:D19) -> 24 | F19: =SUM(F17:F18) -> 1
A21: For 16-30 riders 3 places
A22: Placings | B22: 1D | C22: 2D | D22: 3D
A23: 1st | B23: =$B$7*$F$23 -> 6 | C23: =$C$7*$F$23 -> 3.6 | D23: =$D$7*$F$23 -> 2.4 | E23: è | F23: 0.5
A24: 2nd | B24: =$B$7*$F$24 -> 3.6 | C24: =$C$7*$F$24 -> 2.16 | D24: =$D$7*$F$24 -> 1.44 | E24: è | F24: 0.3
A25: 3rd | B25: =$B$7*$F$25 -> 2.4 | C25: =$C$7*$F$25 -> 1.44 | D25: =$D$7*$F$25 -> 0.96 | E25: è | F25: 0.2
A26: Totals | B26: =SUM(B23:B25) -> 12 | C26: =SUM(C23:C25) -> 7.2 | D26: =SUM(D22:D25) -> 4.8 | E26: =SUM(B26:D26) -> 24 | F26: =SUM(F23:F25) -> 1
A28: For 31-60 riders 4 places
A29: Placings | B29: 1D | C29: 2D | D29: 3D
A30: 1st | B30: =$B$7*$F$30 -> 5.04 | C30: =$C$7*$F$30 -> 3.024 | D30: =$D$7*$F$30 -> 2.016 | E30: è | F30: 0.42
A31: 2nd | B31: =$B$7*$F$31 -> 3.48 | C31: =$C$7*$F$31 -> 2.088 | D31: =$D$7*$F$31 -> 1.392 | E31: è | F31: 0.29
A32: 3rd | B32: =$B$7*$F$32 -> 2.28 | C32: =$C$7*$F$32 -> 1.368 | D32: =$D$7*$F$32 -> 0.912 | E32: è | F32: 0.19
A33: 4th | B33: =$B$7*$F$33 -> 1.2 | C33: =$C$7*$F$33 -> 0.72 | D33: =$D$7*$F$33 -> 0.48 | E33: è | F33: 0.1
A34: Totals | B34: =SUM(B30:B33) -> 12 | C34: =SUM(C30:C33) -> 7.2 | D34: =SUM(D30:D33) -> 4.8 | E34: =SUM(B34:D34) -> 24 | F34: =SUM(F30:F33) -> 1
A36: For 61-90 riders 5 places
A37: Placings | B37: 1D | C37: 2D | D37: 3D
A38: 1st | B38: =$B$7*$F$38 -> 4.56 | C38: =$C$7*$F$38 -> 2.736 | D38: =$D$7*$F$38 -> 1.824 | E38: è | F38: 0.38
A39: 2nd | B39: =$B$7*$F$39 -> 3.36 | C39: =$C$7*$F$39 -> 2.016 | D39: =$D$7*$F$39 -> 1.344 | E39: è | F39: 0.28
A40: 3rd | B40: =$B$7*$F$40 -> 2.16 | C40: =$C$7*$F$40 -> 1.296 | D40: =$D$7*$F$40 -> 0.864 | E40: è | F40: 0.18
A41: 4th | B41: =$B$7*$F$41 -> 1.2 | C41: =$C$7*$F$41 -> 0.72 | D41: =$D$7*$F$41 -> 0.48 | E41: è | F41: 0.1
A42: 5th | B42: =$B$7*$F$42 -> 0.72 | C42: =$C$7*$F$42 -> 0.432 | D42: =$D$7*$F$42 -> 0.288 | E42: è | F42: 0.06
A43: Totals | B43: =SUM(B38:B42) -> 12 | C43: =SUM(C38:C42) -> 7.2 | D43: =SUM(D38:D42) -> 4.8 | E43: =SUM(B43:D43) -> 24 | F43: =SUM(F38:F42) -> 1
A45: For 91-120 riders 6 places
A46: Placings | B46: 1D | C46: 2D | D46: 3D
A47: 1st | B47: =$B$7*$F$47 -> 4.32 | C47: =$C$7*$F$47 -> 2.592 | D47: =$D$7*$F$47 -> 1.728 | E47: è | F47: 0.36
A48: 2nd | B48: =$B$7*$F$48 -> 3.12 | C48: =$C$7*$F$48 -> 1.872 | D48: =$D$7*$F$48 -> 1.248 | E48: è | F48: 0.26
A49: 3rd | B49: =$B$7*$F$49 -> 1.92 | C49: =$C$7*$F$49 -> 1.152 | D49: =$D$7*$F$49 -> 0.768 | E49: è | F49: 0.16
A50: 4th | B50: =$B$7*$F$50 -> 1.2 | C50: =$C$7*$F$50 -> 0.72 | D50: =$D$7*$F$50 -> 0.48 | E50: è | F50: 0.1
A51: 5th | B51: =$B$7*$F$51 -> 0.84 | C51: =$C$7*$F$51 -> 0.504 | D51: =$D$7*$F$51 -> 0.336 | E51: è | F51: 0.07
A52: 6th | B52: =$B$7*$F$52 -> 0.6 | C52: =$C$7*$F$52 -> 0.36 | D52: =$D$7*$F$52 -> 0.24 | E52: è | F52: 0.05
A53: Totals | B53: =SUM(B47:B52) -> 12 | C53: =SUM(C47:C52) -> 7.2 | D53: =SUM(D47:D52) -> 4.8 | E53: =SUM(B53:D53) -> 24 | F53: =SUM(F47:F52) -> 1
A55: For 121-200 riders 7 places
A56: Placings | B56: 1D | C56: 2D | D56: 3D
A57: 1st | B57: =$B$7*$F$57 -> 3.12 | C57: =$C$7*$F$57 -> 1.872 | D57: =$D$7*$F$57 -> 1.248 | E57: è | F57: 0.26
A58: 2nd | B58: =$B$7*$F$58 -> 2.4 | C58: =$C$7*$F$58 -> 1.44 | D58: =$D$7*$F$58 -> 0.96 | E58: è | F58: 0.2
A59: 3rd | B59: =$B$7*$F$59 -> 1.8 | C59: =$C$7*$F$59 -> 1.08 | D59: =$D$7*$F$59 -> 0.72 | E59: è | F59: 0.15
A60: 4th | B60: =$B$7*$F$60 -> 1.44 | C60: =$C$7*$F$60 -> 0.864 | D60: =$D$7*$F$60 -> 0.576 | E60: è | F60: 0.12
A61: 5th | B61: =$B$7*$F$61 -> 1.2 | C61: =$C$7*$F$61 -> 0.72 | D61: =$D$7*$F$61 -> 0.48 | E61: è | F61: 0.1
A62: 6th | B62: =$B$7*$F$62 -> 1.08 | C62: =$C$7*$F$62 -> 0.648 | D62: =$D$7*$F$62 -> 0.432 | E62: è | F62: 0.09
A63: 7th | B63: =$B$7*$F$63 -> 0.96 | C63: =$C$7*$F$63 -> 0.576 | D63: =$D$7*$F$63 -> 0.384 | E63: è | F63: 0.08
A64: Totals | B64: =SUM(B57:B63) -> 12 | C64: =SUM(C57:C63) -> 7.2 | D64: =SUM(D57:D63) -> 4.8 | E64: =SUM(B64:D64) -> 24 | F64: =SUM(F57:F63) -> 1
A66: For 201 or more riders 8 places
A67: Placings | B67: 1D | C67: 2D | D67: 3D
A68: 1st | B68: =$B$7*0.24 -> 2.88 | C68: =$C$7*0.24 -> 1.728 | D68: =$D$7*0.24 -> 1.152 | E68: è | F68: 0.24
A69: 2nd | B69: =$B$7*0.18 -> 2.16 | C69: =$C$7*0.18 -> 1.296 | D69: =$D$7*0.18 -> 0.864 | E69: è | F69: 0.18
A70: 3rd | B70: =$B$7*0.15 -> 1.8 | C70: =$C$7*0.15 -> 1.08 | D70: =$D$7*0.15 -> 0.72 | E70: è | F70: 0.15
A71: 4th | B71: =$B$7*0.12 -> 1.44 | C71: =$C$7*0.12 -> 0.864 | D71: =$D$7*0.12 -> 0.576 | E71: è | F71: 0.12
A72: 5th | B72: =$B$7*0.1 -> 1.2 | C72: =$C$7*0.1 -> 0.72 | D72: =$D$7*0.1 -> 0.48 | E72: è | F72: 0.1
A73: 6th | B73: =$B$7*0.08 -> 0.96 | C73: =$C$7*0.08 -> 0.576 | D73: =$D$7*0.08 -> 0.384 | E73: è | F73: 0.08
A74: 7th | B74: =$B$7*0.07 -> 0.84 | C74: =$C$7*0.07 -> 0.504 | D74: =$D$7*0.07 -> 0.336 | E74: è | F74: 0.07
A75: 8th | B75: =$B$7*0.06 -> 0.72 | C75: =$C$7*0.06 -> 0.432 | D75: =$D$7*0.06 -> 0.288 | E75: è | F75: 0.06
A76: Totals | B76: =SUM(B68:B75) -> 12 | C76: =SUM(C68:C75) -> 7.2 | D76: =SUM(D68:D75) -> 4.8 | E76: =SUM(B76:D76) -> 24 | F76: =SUM(F68:F75) -> 1

Sheet 4D Payout BBR (hidden)
A1: 4D Payout BBR
A2: Entry Fee | B2: # Entries | C2: % Payback | D2: $ From Entry | E2: Added $ | F2: Total Payout
A3: 40 | B3: 200 | C3: 0.8 | D3: =$A$3*$C$3*$B$3 -> 6400 | E3: 1100 | F3: =($A$3*$C$3)*$B$3+$E$3 -> 7500
A5: % in each D | B5: 0.35 | C5: 0.3 | D5: 0.2 | E5: 0.15 | F5: Total % Payout | G5: =SUM(B5:E5) -> 1
B6: 1D | C6: 2D | D6: 3D | E6: 4D
B7: =(($A$3*$B$3*$C$3*0.35)+($E$3/4)) -> 2515 | C7: =(($A$3*$B$3*$C$3*0.3)+($E$3/4)) -> 2195 | D7: =(($A$3*$B$3*$C$3*0.2)+($E$3/4)) -> 1555 | E7: =(($A$3*$B$3*$C$3*0.15)+($E$3/4)) -> 1235
A8: Totals | B8: =SUM(B7) -> 2515 | C8: =SUM(C7) -> 2195 | D8: 1555 | E8: 1235 | F8: =SUM(B8:E8) -> 7500
A10: For 1-16 riders 1 place
A11: Placings | B11: 1D | C11: 2D | D11: 3D | E11: 4D
A12: 1st | B12: =$B$7*$G$12 -> 2515 | C12: =$C$7*$G$12 -> 2195 | D12: =$D$7*$G$12 -> 1555 | E12: =$E$7*$G$12 -> 1235 | F12: è | G12: 1
A13: Totals | B13: =SUM(B12:B12) -> 2515 | C13: =SUM(C12:C12) -> 2195 | D13: =SUM(D12:D12) -> 1555 | E13: =SUM(E12:E12) -> 1235 | F13: =SUM(B13:E13) -> 7500 | G13: =SUM(G12) -> 1
A15: For 17-33 riders 2 places
A16: Placings | B16: 1D | C16: 2D | D16: 3D | E16: 4D
A17: 1st | B17: =$B$7*$G$17 -> 1509 | C17: =$C$7*$G$17 -> 1317 | D17: =$D$7*$G$17 -> 933 | E17: =$E$7*$G$17 -> 741 | F17: è | G17: 0.6
A18: 2nd | B18: =$B$7*$G$18 -> 1006 | C18: =$C$7*$G$18 -> 878 | D18: =$D$7*$G$18 -> 622 | E18: =$E$7*$G$18 -> 494 | F18: è | G18: 0.4
A19: Totals | B19: =SUM(B17:B18) -> 2515 | C19: =SUM(C17:C18) -> 2195 | D19: =SUM(D17:D18) -> 1555 | E19: =SUM(E17:E18) -> 1235 | F19: =SUM(B19:E19) -> 7500 | G19: =SUM(G17:G18) -> 1
A21: For 34-66 riders 3 places
A22: Placings | B22: 1D | C22: 2D | D22: 3D | E22: 4D
A23: 1st | B23: =$B$7*$G$23 -> 1257.5 | C23: =$C$7*$G$23 -> 1097.5 | D23: =$D$7*$G$23 -> 777.5 | E23: =$E$7*$G$23 -> 617.5 | F23: è | G23: 0.5
A24: 2nd | B24: =$B$7*$G$24 -> 754.5 | C24: =$C$7*$G$24 -> 658.5 | D24: =$D$7*$G$24 -> 466.5 | E24: =$E$7*$G$24 -> 370.5 | F24: è | G24: 0.3
A25: 3rd | B25: =$B$7*$G$25 -> 503 | C25: =$C$7*$G$25 -> 439 | D25: =$D$7*$G$25 -> 311 | E25: =$E$7*$G$25 -> 247 | F25: è | G25: 0.2
A26: Totals | B26: =SUM(B23:B25) -> 2515 | C26: =SUM(C23:C25) -> 2195 | D26: =SUM(D23:D25) -> 1555 | E26: =SUM(E23:E25) -> 1235 | F26: =SUM(B26:E26) -> 7500 | G26: =SUM(G23:G25) -> 1
A28: For 97-95 riders 4 places
A29: Placings | B29: 1D | C29: 2D | D29: 3D | E29: 4D
A30: 1st | B30: =$B$7*$G$30 -> 1006 | C30: =$C$7*$G$30 -> 878 | D30: =$D$7*$G$30 -> 622 | E30: =$E$7*$G$30 -> 494 | F30: è | G30: 0.4
A31: 2nd | B31: =$B$7*$G$31 -> 754.5 | C31: =$C$7*$G$31 -> 658.5 | D31: =$D$7*$G$31 -> 466.5 | E31: =$E$7*$G$31 -> 370.5 | F31: è | G31: 0.3
A32: 3rd | B32: =$B$7*$G$32 -> 503 | C32: =$C$7*$G$32 -> 439 | D32: =$D$7*$G$32 -> 311 | E32: =$E$7*$G$32 -> 247 | F32: è | G32: 0.2
A33: 4th | B33: =$B$7*$G$33 -> 251.5 | C33: =$C$7*$G$33 -> 219.5 | D33: =$D$7*$G$33 -> 155.5 | E33: =$E$7*$G$33 -> 123.5 | F33: è | G33: 0.1
A34: Totals | B34: =SUM(B30:B33) -> 2515 | C34: =SUM(C30:C33) -> 2195 | D34: =SUM(D30:D33) -> 1555 | E34: =SUM(E30:E33) -> 1235 | F34: =SUM(B34:E34) -> 7500 | G34: =SUM(G30:G33) -> 1
A36: For 96-133 riders 5 places
A37: Placings | B37: 1D | C37: 2D | D37: 3D | E37: 4D
A38: 1st | B38: =$B$7*$G$38 -> 829.95 | C38: =$C$7*$G$38 -> 724.35 | D38: =$D$7*G38 -> 513.15 | E38: =$E$7*$G$38 -> 407.55 | F38: è | G38: 0.33
A39: 2nd | B39: =$B$7*$G$39 -> 679.05 | C39: =$C$7*$G$39 -> 592.65 | D39: =$D$7*$G$39 -> 419.85 | E39: =$E$7*$G$39 -> 333.45 | F39: è | G39: 0.27
A40: 3rd | B40: =$B$7*$G$40 -> 503 | C40: =$C$7*$G$40 -> 439 | D40: =$D$7*$G$40 -> 311 | E40: =$E$7*$G$40 -> 247 | F40: è | G40: 0.2
A41: 4th | B41: =$B$7*$G$41 -> 326.95 | C41: =$C$7*$G$41 -> 285.35 | D41: =$D$7*$G$41 -> 202.15 | E41: =$E$7*$G$41 -> 160.55 | F41: è | G41: 0.13
A42: 5th | B42: =$B$7*$G$42 -> 176.05 | C42: =$C$7*$G$42 -> 153.65 | D42: =$D$7*$G$42 -> 108.85 | E42: =$E$7*$G$42 -> 86.45 | F42: è | G42: 0.07
A43: Totals | B43: =SUM(B38:B42) -> 2515 | C43: =SUM(C38:C42) -> 2195 | D43: =SUM(D38:D42) -> 1555 | E43: =SUM(E38:E42) -> 1235 | F43: =SUM(B43:E43) -> 7500 | G43: =SUM(G38:G42) -> 1
A45: For 134-166 riders 6 places
A46: Placings | B46: 1D | C46: 2D | D46: 3D | E46: 4D
A47: 1st | B47: =$B$7*$G$47 -> 729.35 | C47: =$C$7*$G$47 -> 636.55 | D47: =$D$7*$G$47 -> 450.95 | E47: =$E$7*$G$47 -> 358.15 | F47: è | G47: 0.29
A48: 2nd | B48: =$B$7*$G$48 -> 603.6 | C48: =$C$7*$G$48 -> 526.8 | D48: =$D$7*$G$48 -> 373.2 | E48: =$E$7*$G$48 -> 296.4 | F48: è | G48: 0.24
A49: 3rd | B49: =$B$7*$G$49 -> 477.85 | C49: =$C$7*$G$49 -> 417.05 | D49: =$D$7*$G$49 -> 295.45 | E49: =$E$7*$G$49 -> 234.65 | F49: è | G49: 0.19
A50: 4th | B50: =$B$7*$G$50 -> 352.1 | C50: =$C$7*$G$50 -> 307.3 | D50: =$D$7*$G$50 -> 217.7 | E50: =$E$7*$G$50 -> 172.9 | F50: è | G50: 0.14
A51: 5th | B51: =$B$7*$G$51 -> 226.35 | C51: =$C$7*$G$51 -> 197.55 | D51: =$D$7*$G$51 -> 139.95 | E51: =$E$7*$G$51 -> 111.15 | F51: è | G51: 0.09
A52: 6th | B52: =$B$7*$G$52 -> 125.75 | C52: =$C$7*$G$52 -> 109.75 | D52: =$D$7*$G$52 -> 77.75 | E52: =$E$7*$G$52 -> 61.75 | F52: è | G52: 0.05
A53: Totals | B53: =SUM(B47:B52) -> 2515 | C53: =SUM(C47:C52) -> 2195 | D53: =SUM(D47:D52) -> 1555 | E53: =SUM(E47:E52) -> 1235 | F53: =SUM(B53:E53) -> 7500 | G53: =SUM(G47:G52) -> 1
A55: For 167-222 riders 8 places
A56: Placings | B56: 1D | C56: 2D | D56: 3D | E56: 4D
A57: 1st | B57: =$B$7*$G$57 -> 603.6 | C57: =$C$7*$G$57 -> 526.8 | D57: =$D$7*$G$57 -> 373.2 | E57: =$E$7*$G$57 -> 296.4 | F57: è | G57: 0.24
A58: 2nd | B58: =$B$7*$G$58 -> 503 | C58: =$C$7*$G$58 -> 439 | D58: =$D$7*$G$58 -> 311 | E58: =$E$7*$G$58 -> 247 | F58: è | G58: 0.2
A59: 3rd | B59: =$B$7*$G$59 -> 427.55 | C59: =$C$7*$G$59 -> 373.15 | D59: =$D$7*$G$59 -> 264.35 | E59: =$E$7*$G$59 -> 209.95 | F59: è | G59: 0.17
A60: 4th | B60: =$B$7*$G$60 -> 326.95 | C60: =$C$7*$G$60 -> 285.35 | D60: =$D$7*$G$60 -> 202.15 | E60: =$E$7*$G$60 -> 160.55 | F60: è | G60: 0.13
A61: 5th | B61: =$B$7*$G$61 -> 251.5 | C61: =$C$7*$G$61 -> 219.5 | D61: =$D$7*$G$61 -> 155.5 | E61: =$E$7*$G$61 -> 123.5 | F61: è | G61: 0.1
A62: 6th | B62: =$B$7*$G$62 -> 176.05 | C62: =$C$7*$G$62 -> 153.65 | D62: =$D$7*$G$62 -> 108.85 | E62: =$E$7*$G$62 -> 86.45 | F62: è | G62: 0.07
A63: 7th | B63: =$B$7*$G$63 -> 125.75 | C63: =$C$7*$G$63 -> 109.75 | D63: =$D$7*$G$63 -> 77.75 | E63: =$E$7*$G$63 -> 61.75 | F63: è | G63: 0.05
A64: 8th | B64: =$B$7*$G$64 -> 100.6 | C64: =$C$7*$G$64 -> 87.8 | D64: =$D$7*$G$64 -> 62.2 | E64: =$E$7*$G$64 -> 49.4 | F64: è | G64: 0.04
A65: Totals | B65: =SUM(B57:B64) -> 2515 | C65: =SUM(C57:C64) -> 2195 | D65: =SUM(D57:D64) -> 1555 | E65: =SUM(E57:E64) -> 1235 | F65: =SUM(B65:E65) -> 7500 | G65: =SUM(G57:G64) -> 1
A67: For 223-333 riders 10 places
A68: Placings | B68: 1D | C68: 2D | D68: 3D | E68: 4D
A69: 1st | B69: =$B$7*$G$69 -> 528.15 | C69: =$C$7*$G$69 -> 460.95 | D69: =$D$7*$G$69 -> 326.55 | E69: =$E$7*$G$69 -> 259.35 | F69: è | G69: 0.21
A70: 2nd | B70: =$B$7*$G$70 -> 452.7 | C70: =$C$7*$G$70 -> 395.1 | D70: =$D$7*$G$70 -> 279.9 | E70: =$E$7*$G$70 -> 222.3 | F70: è | G70: 0.18
A71: 3rd | B71: =$B$7*$G$71 -> 377.25 | C71: =$C$7*$G$71 -> 329.25 | D71: =$D$7*$G$71 -> 233.25 | E71: =$E$7*$G$71 -> 185.25 | F71: è | G71: 0.15
A72: 4th | B72: =$B$7*$G$72 -> 301.8 | C72: =$C$7*$G$72 -> 263.4 | D72: =$D$7*$G$72 -> 186.6 | E72: =$E$7*$G$72 -> 148.2 | F72: è | G72: 0.12
A73: 5th | B73: =$B$7*$G$73 -> 226.35 | C73: =$C$7*$G$73 -> 197.55 | D73: =$D$7*$G$73 -> 139.95 | E73: =$E$7*$G$73 -> 111.15 | F73: è | G73: 0.09
A74: 6th | B74: =$B$7*$G$74 -> 176.05 | C74: =$C$7*$G$74 -> 153.65 | D74: =$D$7*$G$74 -> 108.85 | E74: =$E$7*$G$74 -> 86.45 | F74: è | G74: 0.07
A75: 7th | B75: =$B$7*$G$75 -> 150.9 | C75: =$C$7*$G$75 -> 131.7 | D75: =$D$7*$G$75 -> 93.3 | E75: =$E$7*$G$75 -> 74.1 | F75: è | G75: 0.06
A76: 8th | B76: =$B$7*$G$76 -> 125.75 | C76: =$C$7*$G$76 -> 109.75 | D76: =$D$7*$G$76 -> 77.75 | E76: =$E$7*$G$76 -> 61.75 | F76: è | G76: 0.05
A77: 9th | B77: =$B$7*$G$77 -> 100.6 | C77: =$C$7*$G$77 -> 87.8 | D77: =$D$7*$G$77 -> 62.2 | E77: =$E$7*$G$77 -> 49.4 | F77: è | G77: 0.04
A78: 10th | B78: =$B$7*$G$78 -> 75.45 | C78: =$C$7*$G$78 -> 65.85 | D78: =$D$7*$G$78 -> 46.65 | E78: =$E$7*$G$78 -> 37.05 | F78: è | G78: 0.03
A79: Totals | B79: =SUM(B69:B78) -> 2515 | C79: =SUM(C69:C78) -> 2195 | D79: =SUM(D69:D78) -> 1555 | E79: =SUM(E69:E78) -> 1235 | F79: =B79+C79+D79+E79 -> 7500 | G79: =SUM(G69:G78) -> 1
A81: For 334-500 riders 12 places
A82: Placings | B82: 1D | C82: 2D | D82: 3D | E82: 4D
A83: 1st | B83: =$B$7*$G$83 -> 477.85 | C83: =$C$7*$G$83 -> 417.05 | D83: =$D$7*$G$83 -> 295.45 | E83: =$E$7*$G$83 -> 234.65 | F83: è | G83: 0.19
A84: 2nd | B84: =$B$7*$G$84 -> 377.25 | C84: =$C$7*$G$84 -> 329.25 | D84: =$D$7*$G$84 -> 233.25 | E84: =$E$7*$G$84 -> 185.25 | F84: è | G84: 0.15
A85: 3rd | B85: =$B$7*$G$85 -> 301.8 | C85: =$C$7*$G$85 -> 263.4 | D85: =$D$7*$G$85 -> 186.6 | E85: =$E$7*$G$85 -> 148.2 | F85: è | G85: 0.12
A86: 4th | B86: =$B$7*$G$86 -> 251.5 | C86: =$C$7*$G$86 -> 219.5 | D86: =$D$7*$G$86 -> 155.5 | E86: =$E$7*$G$86 -> 123.5 | F86: è | G86: 0.1
A87: 5th | B87: =$B$7*$G$87 -> 226.35 | C87: =$C$7*$G$87 -> 197.55 | D87: =$D$7*$G$87 -> 139.95 | E87: =$E$7*$G$87 -> 111.15 | F87: è | G87: 0.09
A88: 6th | B88: =$B$7*$G$88 -> 201.2 | C88: =$C$7*$G$88 -> 175.6 | D88: =$D$7*$G$88 -> 124.4 | E88: =$E$7*$G$88 -> 98.8 | F88: è | G88: 0.08
A89: 7th | B89: =$B$7*$G$89 -> 176.05 | C89: =$C$7*$G$89 -> 153.65 | D89: =$D$7*$G$89 -> 108.85 | E89: =$E$7*$G$89 -> 86.45 | F89: è | G89: 0.07
A90: 8th | B90: =$B$7*$G$90 -> 150.9 | C90: =$C$7*$G$90 -> 131.7 | D90: =$D$7*$G$90 -> 93.3 | E90: =$E$7*$G$90 -> 74.1 | F90: è | G90: 0.06
A91: 9th | B91: =$B$7*$G$91 -> 125.75 | C91: =$C$7*$G$91 -> 109.75 | D91: =$D$7*$G$91 -> 77.75 | E91: =$E$7*$G$91 -> 61.75 | F91: è | G91: 0.05
A92: 10th | B92: =$B$7*$G$92 -> 100.6 | C92: =$C$7*$G$92 -> 87.8 | D92: =$D$7*$G$92 -> 62.2 | E92: =$E$7*$G$92 -> 49.4 | F92: è | G92: 0.04
A93: 11th | B93: =$B$7*$G$93 -> 75.45 | C93: =$C$7*$G$93 -> 65.85 | D93: =$D$7*$G$93 -> 46.65 | E93: =$E$7*$G$93 -> 37.05 | F93: è | G93: 0.03
A94: 12th | B94: =$B$7*$G$94 -> 50.3 | C94: =$C$7*$G$94 -> 43.9 | D94: =$D$7*$G$94 -> 31.1 | E94: =$E$7*$G$94 -> 24.7 | F94: è | G94: 0.02
A95: Totals | B95: =SUM(B83:B94) -> 2515 | C95: =SUM(C83:C94) -> 2195 | D95: 1555 | E95: 1235 | F95: =B95+C95+D95+E95 -> 7500 | G95: =SUM(G83:G94) -> 1
A97: For 501-750 riders 15 places
A98: Placings | B98: 1D | C98: 2D | D98: 3D | E98: 4D
A99: 1st | B99: =$B$7*$G$99 -> 452.7 | C99: =$C$7*$G$99 -> 395.1 | D99: =$D$7*$G$99 -> 279.9 | E99: =$E$7*$G$99 -> 222.3 | F99: è | G99: 0.18
A100: 2nd | B100: =$B$7*$G$100 -> 377.25 | C100: =$C$7*$G$100 -> 329.25 | D100: =$D$7*$G$100 -> 233.25 | E100: =$E$7*$G$100 -> 185.25 | F100: è | G100: 0.15
A101: 3rd | B101: =$B$7*$G$101 -> 301.8 | C101: =$C$7*$G$101 -> 263.4 | D101: =$D$7*$G$101 -> 186.6 | E101: =$E$7*$G$101 -> 148.2 | F101: è | G101: 0.12
A102: 4th | B102: =$B$7*$G$102 -> 251.5 | C102: =$C$7*$G$102 -> 219.5 | D102: =$D$7*$G$102 -> 155.5 | E102: =$E$7*$G$102 -> 123.5 | F102: è | G102: 0.1
A103: 5th | B103: =$B$7*$G$103 -> 213.775 | C103: =$C$7*$G$103 -> 186.575 | D103: =$D$7*$G$103 -> 132.175 | E103: =$E$7*$G$103 -> 104.975 | F103: è | G103: 0.085
A104: 6th | B104: =$B$7*$G$104 -> 176.05 | C104: =$C$7*$G$104 -> 153.65 | D104: =$D$7*$G$104 -> 108.85 | E104: =$E$7*$G$104 -> 86.45 | F104: è | G104: 0.07
A105: 7th | B105: =$B$7*$G$105 -> 150.9 | C105: =$C$7*$G$105 -> 131.7 | D105: =$D$7*$G$105 -> 93.3 | E105: =$E$7*$G$105 -> 74.1 | F105: è | G105: 0.06
A106: 8th | B106: =$B$7*$G$106 -> 125.75 | C106: =$C$7*$G$106 -> 109.75 | D106: =$D$7*$G$106 -> 77.75 | E106: =$E$7*$G$106 -> 61.75 | F106: è | G106: 0.05
A107: 9th | B107: =$B$7*$G$107 -> 106.8875 | C107: =$C$7*$G$107 -> 93.2875 | D107: =$D$7*$G$107 -> 66.0875 | E107: =$E$7*$G$107 -> 52.4875 | F107: è | G107: 0.0425
A108: 10th | B108: =$B$7*$G$108 -> 88.025 | C108: =$C$7*$G$108 -> 76.825 | D108: =$D$7*$G$108 -> 54.425 | E108: =$E$7*$G$108 -> 43.225 | F108: è | G108: 0.035
A109: 11th | B109: =$B$7*$G$109 -> 75.45 | C109: =$C$7*$G$109 -> 65.85 | D109: =$D$7*$G$109 -> 46.65 | E109: =$E$7*$G$109 -> 37.05 | F109: è | G109: 0.03
A110: 12th | B110: =$B$7*$G$110 -> 62.875 | C110: =$C$7*$G$110 -> 54.875 | D110: =$D$7*$G$110 -> 38.875 | E110: =$E$7*$G$110 -> 30.875 | F110: è | G110: 0.025
A111: 13th | B111: =$B$7*$G$111 -> 50.3 | C111: =$C$7*$G$111 -> 43.9 | D111: =$D$7*$G$111 -> 31.1 | E111: =$E$7*$G$111 -> 24.7 | F111: è | G111: 0.02
A112: 14th | B112: =$B$7*$G$112 -> 44.0125 | C112: =$C$7*$G$112 -> 38.4125 | D112: =$D$7*$G$112 -> 27.2125 | E112: =$E$7*$G$112 -> 21.6125 | F112: è | G112: 0.0175
A113: 15th | B113: =$B$7*$G$113 -> 37.725 | C113: =$C$7*$G$113 -> 32.925 | D113: =$D$7*$G$113 -> 23.325 | E113: =$E$7*$G$113 -> 18.525 | F113: è | G113: 0.015
A114: Totals | B114: =SUM(B99:B113) -> 2515 | C114: =SUM(C99:C113) -> 2195 | D114: 1555 | E114: 1235 | F114: =B114+C114+D114+E114 -> 7500 | G114: =SUM(G99:G113) -> 1
A116: For 751-1200 riders 20 places
A117: Placings | B117: 1D | C117: 2D | D117: 3D | E117: 4D
A118: 1st | B118: =$B$7*$G$118 -> 352.1 | C118: =$C$7*$G$118 -> 307.3 | D118: =$D$7*$G$118 -> 217.7 | E118: =$E$7*$G$118 -> 172.9 | F118: è | G118: 0.14
A119: 2nd | B119: =$B$7*$G$119 -> 276.65 | C119: =$C$7*$G$119 -> 241.45 | D119: =$D$7*$G$119 -> 171.05 | E119: =$E$7*$G$119 -> 135.85 | F119: è | G119: 0.11
A120: 3rd | B120: =$B$7*$G$120 -> 226.35 | C120: =$C$7*$G$120 -> 197.55 | D120: =$D$7*$G$120 -> 139.95 | E120: =$E$7*$G$120 -> 111.15 | F120: è | G120: 0.09
A121: 4th | B121: =$B$7*$G$121 -> 193.655 | C121: =$C$7*$G$121 -> 169.015 | D121: =$D$7*$G$121 -> 119.735 | E121: =$E$7*$G$121 -> 95.095 | F121: è | G121: 0.077
A122: 5th | B122: =$B$7*$G$122 -> 176.05 | C122: =$C$7*$G$122 -> 153.65 | D122: =$D$7*$G$122 -> 108.85 | E122: =$E$7*$G$122 -> 86.45 | F122: è | G122: 0.07
A123: 6th | B123: =$B$7*$G$123 -> 163.475 | C123: =$C$7*$G$123 -> 142.675 | D123: =$D$7*$G$123 -> 101.075 | E123: =$E$7*$G$123 -> 80.275 | F123: è | G123: 0.065
A124: 7th | B124: =$B$7*$G$124 -> 150.9 | C124: =$C$7*$G$124 -> 131.7 | D124: =$D$7*$G$124 -> 93.3 | E124: =$E$7*$G$124 -> 74.1 | F124: è | G124: 0.06
A125: 8th | B125: =$B$7*$G$125 -> 138.325 | C125: =$C$7*$G$125 -> 120.725 | D125: =$D$7*$G$125 -> 85.525 | E125: =$E$7*$G$125 -> 67.925 | F125: è | G125: 0.055
A126: 9th | B126: =$B$7*$G$126 -> 125.75 | C126: =$C$7*$G$126 -> 109.75 | D126: =$D$7*$G$126 -> 77.75 | E126: =$E$7*$G$126 -> 61.75 | F126: è | G126: 0.05
A127: 10th | B127: =$B$7*$G$127 -> 113.175 | C127: =$C$7*$G$127 -> 98.775 | D127: =$D$7*$G$127 -> 69.975 | E127: =$E$7*$G$127 -> 55.575 | F127: è | G127: 0.045
A128: 11th | B128: =$B$7*$G$128 -> 100.6 | C128: =$C$7*$G$128 -> 87.8 | D128: =$D$7*$G$128 -> 62.2 | E128: =$E$7*$G$128 -> 49.4 | F128: è | G128: 0.04
A129: 12th | B129: =$B$7*$G$129 -> 93.055 | C129: =$C$7*$G$129 -> 81.215 | D129: =$D$7*$G$129 -> 57.535 | E129: =$E$7*$G$129 -> 45.695 | F129: è | G129: 0.037
A130: 13th | B130: =$B$7*$G$130 -> 82.995 | C130: =$C$7*$G$130 -> 72.435 | D130: =$D$7*$G$130 -> 51.315 | E130: =$E$7*$G$130 -> 40.755 | F130: è | G130: 0.033
A131: 14th | B131: =$B$7*$G$131 -> 72.935 | C131: =$C$7*$G$131 -> 63.655 | D131: =$D$7*$G$131 -> 45.095 | E131: =$E$7*$G$131 -> 35.815 | F131: è | G131: 0.029
A132: 15th | B132: =$B$7*$G$132 -> 62.875 | C132: =$C$7*$G$132 -> 54.875 | D132: =$D$7*$G$132 -> 38.875 | E132: =$E$7*$G$132 -> 30.875 | F132: è | G132: 0.025
A133: 16th | B133: =$B$7*$G$133 -> 52.815 | C133: =$C$7*$G$133 -> 46.095 | D133: =$D$7*$G$133 -> 32.655 | E133: =$E$7*$G$133 -> 25.935 | F133: è | G133: 0.021
A134: 17th | B134: =$B$7*$G$134 -> 42.755 | C134: =$C$7*$G$134 -> 37.315 | D134: =$D$7*$G$134 -> 26.435 | E134: =$E$7*$G$134 -> 20.995 | F134: è | G134: 0.017
A135: 18th | B135: =$B$7*$G$135 -> 35.21 | C135: =$C$7*$G$135 -> 30.73 | D135: =$D$7*$G$135 -> 21.77 | E135: =$E$7*$G$135 -> 17.29 | F135: è | G135: 0.014
A136: 19th | B136: =$B$7*$G$136 -> 30.18 | C136: =$C$7*$G$136 -> 26.34 | D136: =$D$7*$G$136 -> 18.66 | E136: =$E$7*$G$136 -> 14.82 | F136: è | G136: 0.012
A137: 20th | B137: =$B$7*$G$137 -> 25.15 | C137: =$C$7*$G$137 -> 21.95 | D137: =$D$7*$G$137 -> 15.55 | E137: =$E$7*$G$137 -> 12.35 | F137: è | G137: 0.01
A138: Totals | B138: =SUM(B118:B137) -> 2515 | C138: =SUM(C118:C137) -> 2195 | D138: 1555 | E138: 1235 | F138: =B138+C138+D138+E138 -> 7500 | G138: =SUM(G118:G137) -> 1
A140: For 1201 or More riders 30 places
A141: Placings | B141: 1D | C141: 2D | D141: 3D | E141: 4D
A142: 1st | B142: =$B$7*$G$142 -> 301.8 | C142: =$C$7*$G$142 -> 263.4 | D142: =$D$7*$G$142 -> 186.6 | E142: =$E$7*$G$142 -> 148.2 | F142: è | G142: 0.12
A143: 2nd | B143: =$B$7*$G$143 -> 238.925 | C143: =$C$7*$G$143 -> 208.525 | D143: =$D$7*$G$143 -> 147.725 | E143: =$E$7*$G$143 -> 117.325 | F143: è | G143: 0.095
A144: 3rd | B144: =$B$7*$G$144 -> 183.595 | C144: =$C$7*$G$144 -> 160.235 | D144: =$D$7*$G$144 -> 113.515 | E144: =$E$7*$G$144 -> 90.155 | F144: è | G144: 0.073
A145: 4th | B145: =$B$7*$G$145 -> 155.93 | C145: =$C$7*$G$145 -> 136.09 | D145: =$D$7*$G$145 -> 96.41 | E145: =$E$7*$G$145 -> 76.57 | F145: è | G145: 0.062
A146: 5th | B146: =$B$7*$G$146 -> 125.75 | C146: =$C$7*$G$146 -> 109.75 | D146: =$D$7*$G$146 -> 77.75 | E146: =$E$7*$G$146 -> 61.75 | F146: è | G146: 0.05
A147: 6th | B147: =$B$7*$G$147 -> 113.175 | C147: =$C$7*$G$147 -> 98.775 | D147: =$D$7*$G$147 -> 69.975 | E147: =$E$7*$G$147 -> 55.575 | F147: è | G147: 0.045
A148: 7th | B148: =$B$7*$G$148 -> 108.145 | C148: =$C$7*$G$148 -> 94.385 | D148: =$D$7*$G$148 -> 66.865 | E148: =$E$7*$G$148 -> 53.105 | F148: è | G148: 0.043
A149: 8th | B149: =$B$7*$G$149 -> 100.6 | C149: =$C$7*$G$149 -> 87.8 | D149: =$D$7*$G$149 -> 62.2 | E149: =$E$7*$G$149 -> 49.4 | F149: è | G149: 0.04
A150: 9th | B150: =$B$7*$G$150 -> 93.055 | C150: =$C$7*$G$150 -> 81.215 | D150: =$D$7*$G$150 -> 57.535 | E150: =$E$7*$G$150 -> 45.695 | F150: è | G150: 0.037
A151: 10th | B151: =$B$7*$G$151 -> 88.025 | C151: =$C$7*$G$151 -> 76.825 | D151: =$D$7*$G$151 -> 54.425 | E151: =$E$7*$G$151 -> 43.225 | F151: è | G151: 0.035
A152: 11th | B152: =$B$7*$G$152 -> 82.995 | C152: =$C$7*$G$152 -> 72.435 | D152: =$D$7*$G$152 -> 51.315 | E152: =$E$7*$G$152 -> 40.755 | F152: è | G152: 0.033
A153: 12th | B153: =$B$7*$G$153 -> 77.965 | C153: =$C$7*$G$153 -> 68.045 | D153: =$D$7*$G$153 -> 48.205 | E153: =$E$7*$G$153 -> 38.285 | F153: è | G153: 0.031
A154: 13th | B154: =$B$7*$G$154 -> 72.935 | C154: =$C$7*$G$154 -> 63.655 | D154: =$D$7*$G$154 -> 45.095 | E154: =$E$7*$G$154 -> 35.815 | F154: è | G154: 0.029
A155: 14th | B155: =$B$7*$G$155 -> 67.905 | C155: =$C$7*$G$155 -> 59.265 | D155: =$D$7*$G$155 -> 41.985 | E155: =$E$7*$G$155 -> 33.345 | F155: è | G155: 0.027
A156: 15th | B156: =$B$7*$G$156 -> 62.875 | C156: =$C$7*$G$156 -> 54.875 | D156: =$D$7*$G$156 -> 38.875 | E156: =$E$7*$G$156 -> 30.875 | F156: è | G156: 0.025
A157: 16th | B157: =$B$7*$G$157 -> 60.36 | C157: =$C$7*$G$157 -> 52.68 | D157: =$D$7*$G$157 -> 37.32 | E157: =$E$7*$G$157 -> 29.64 | F157: è | G157: 0.024
A158: 17th | B158: =$B$7*$G$158 -> 57.845 | C158: =$C$7*$G$158 -> 50.485 | D158: =$D$7*$G$158 -> 35.765 | E158: =$E$7*$G$158 -> 28.405 | F158: è | G158: 0.023
A159: 18th | B159: =$B$7*$G$159 -> 55.33 | C159: =$C$7*$G$159 -> 48.29 | D159: =$D$7*$G$159 -> 34.21 | E159: =$E$7*$G$159 -> 27.17 | F159: è | G159: 0.022
A160: 19th | B160: =$B$7*$G$160 -> 52.815 | C160: =$C$7*$G$160 -> 46.095 | D160: =$D$7*$G$160 -> 32.655 | E160: =$E$7*$G$160 -> 25.935 | F160: è | G160: 0.021
A161: 20th | B161: =$B$7*$G$161 -> 50.3 | C161: =$C$7*$G$161 -> 43.9 | D161: =$D$7*$G$161 -> 31.1 | E161: =$E$7*$G$161 -> 24.7 | F161: è | G161: 0.02
A162: 21st | B162: =$B$7*$G$162 -> 47.785 | C162: =$C$7*$G$162 -> 41.705 | D162: =$D$7*$G$162 -> 29.545 | E162: =$E$7*$G$162 -> 23.465 | F162: è | G162: 0.019
A163: 22nd | B163: =$B$7*$G$163 -> 45.27 | C163: =$C$7*$G$163 -> 39.51 | D163: =$D$7*$G$163 -> 27.99 | E163: =$E$7*$G$163 -> 22.23 | F163: è | G163: 0.018
A164: 23rd | B164: =$B$7*$G$164 -> 42.755 | C164: =$C$7*$G$164 -> 37.315 | D164: =$D$7*$G$164 -> 26.435 | E164: =$E$7*$G$164 -> 20.995 | F164: è | G164: 0.017
A165: 24th | B165: =$B$7*$G$165 -> 40.24 | C165: =$C$7*$G$165 -> 35.12 | D165: =$D$7*$G$165 -> 24.88 | E165: =$E$7*$G$165 -> 19.76 | F165: è | G165: 0.016
A166: 25th | B166: =$B$7*$G$166 -> 37.725 | C166: =$C$7*$G$166 -> 32.925 | D166: =$D$7*$G$166 -> 23.325 | E166: =$E$7*$G$166 -> 18.525 | F166: è | G166: 0.015
A167: 26th | B167: =$B$7*$G$167 -> 35.21 | C167: =$C$7*$G$167 -> 30.73 | D167: =$D$7*$G$167 -> 21.77 | E167: =$E$7*$G$167 -> 17.29 | F167: è | G167: 0.014
A168: 27th | B168: =$B$7*$G$168 -> 32.695 | C168: =$C$7*$G$168 -> 28.535 | D168: =$D$7*$G$168 -> 20.215 | E168: =$E$7*$G$168 -> 16.055 | F168: è | G168: 0.013
A169: 28th | B169: =$B$7*$G$169 -> 30.18 | C169: =$C$7*$G$169 -> 26.34 | D169: =$D$7*$G$169 -> 18.66 | E169: =$E$7*$G$169 -> 14.82 | F169: è | G169: 0.012
A170: 29th | B170: =$B$7*$G$170 -> 27.665 | C170: =$C$7*$G$170 -> 24.145 | D170: =$D$7*$G$170 -> 17.105 | E170: =$E$7*$G$170 -> 13.585 | F170: è | G170: 0.011
A171: 30th | B171: =$B$7*$G$171 -> 25.15 | C171: =$C$7*$G$171 -> 21.95 | D171: =$D$7*$G$171 -> 15.55 | E171: =$E$7*$G$171 -> 12.35 | F171: è | G171: 0.01
A172: Totals | B172: =SUM(B142:B171) -> 2515 | C172: =SUM(C142:C171) -> 2195 | D172: =SUM(D142:D171) -> 1555 | E172: =SUM(E142:E171) -> 1235 | F172: =B172+C172+D172+E172 -> 7500 | G172: =SUM(G142:G171) -> 1

Sheet 5D Payout BBR
A1: 5D Payout BBR
A2: Entry Fee | B2: # Entries | C2: % Payback | D2: $ From Entry | E2: Added $ | F2: Total Payout | G2: Total $ Held
A3: 50 | B3: 26 | C3: 0.8 | D3: =$A$3*$C$3*$B$3 -> 1040 | F3: =($A$3*$C$3)*$B$3+$E$3 -> 1040 | G3: =$A$3*(100%-$C$3)*$B$3 -> 260
A5: % in each D | B5: 0.3 | C5: 0.25 | D5: 0.2 | E5: 0.15 | F5: 0.1 | G5: Total % Payout | H5: =SUM(B5:F5) -> 1
B6: 1D | C6: 2D | D6: 3D | E6: 4D | F6: 5D
B7: =(($A$3*$B$3*$C$3*$B$5)+($E$3*$B$5)) -> 312 | C7: =(($A$3*$B$3*$C$3*$C$5)+($E$3*$C$5)) -> 260 | D7: =(($A$3*$B$3*$C$3*$D$5)+($E$3*$D$5)) -> 208 | E7: =(($A$3*$B$3*$C$3*$E$5)+($E$3*$E$5)) -> 156 | F7: =(($A$3*$B$3*$C$3*$F$5)+($E$3*$F$5)) -> 104
A8: Totals | B8: =SUM(B7) -> 312 | C8: =SUM(C7) -> 260 | D8: 208 | E8: 156 | F8: 104 | G8: =SUM(B8:F8) -> 1040
A10: For 1-25 riders 1 place
A11: Placings | B11: 1D | C11: 2D | D11: 3D | E11: 4D | F11: 5D
A12: 1st | B12: =$B$7*$H$12 -> 312 | C12: =$C$7*$H$12 -> 260 | D12: =$D$7*$H$12 -> 208 | E12: =$E$7*$H$12 -> 156 | F12: =$F$7*$H$12 -> 104 | G12: è | H12: 1
A13: Totals | B13: =SUM(B12:B12) -> 312 | C13: =SUM(C12:C12) -> 260 | D13: =SUM(D12:D12) -> 208 | E13: =SUM(E12:E12) -> 156 | F13: =SUM(F12) -> 104 | G13: =SUM(B13:F13) -> 1040 | H13: =SUM(H12) -> 1
A15: For 26-50 riders 2 places
A16: Placings | B16: 1D | C16: 2D | D16: 3D | E16: 4D | F16: 5D
A17: 1st | B17: =$B$7*$H$17 -> 187.2 | C17: =$C$7*$H$17 -> 156 | D17: =$D$7*$H$17 -> 124.8 | E17: =$E$7*$H$17 -> 93.6 | F17: =$F$7*$H$17 -> 62.4 | G17: è | H17: 0.6
A18: 2nd | B18: =$B$7*$H$18 -> 124.8 | C18: =$C$7*$H$18 -> 104 | D18: =$D$7*$H$18 -> 83.2 | E18: =$E$7*$H$18 -> 62.4 | F18: =$F$7*$H$18 -> 41.6 | G18: è | H18: 0.4
A19: Totals | B19: =SUM(B17:B18) -> 312 | C19: =SUM(C17:C18) -> 260 | D19: =SUM(D17:D18) -> 208 | E19: =SUM(E17:E18) -> 156 | F19: =SUM(F17:F18) -> 104 | G19: =SUM(B19:F19) -> 1040 | H19: =SUM(H17:H18) -> 1
A21: For 51-100 riders 3 places
A22: Placings | B22: 1D | C22: 2D | D22: 3D | E22: 4D | F22: 5D
A23: 1st | B23: =$B$7*$H$23 -> 156 | C23: =$C$7*$H$23 -> 130 | D23: =$D$7*$H$23 -> 104 | E23: =$E$7*$H$23 -> 78 | F23: =$F$7*$H$23 -> 52 | G23: è | H23: 0.5
A24: 2nd | B24: =$B$7*$H$24 -> 93.6 | C24: =$C$7*$H$24 -> 78 | D24: =$D$7*$H$24 -> 62.4 | E24: =$E$7*$H$24 -> 46.8 | F24: =$F$7*$H$24 -> 31.2 | G24: è | H24: 0.3
A25: 3rd | B25: =$B$7*$H$25 -> 62.4 | C25: =$C$7*$H$25 -> 52 | D25: =$D$7*$H$25 -> 41.6 | E25: =$E$7*$H$25 -> 31.2 | F25: =$F$7*$H$25 -> 20.8 | G25: è | H25: 0.2
A26: Totals | B26: =SUM(B23:B25) -> 312 | C26: =SUM(C23:C25) -> 260 | D26: =SUM(D23:D25) -> 208 | E26: =SUM(E23:E25) -> 156 | F26: =SUM(F23:F25) -> 104 | G26: =SUM(B26:F26) -> 1040 | H26: =SUM(H23:H25) -> 1
A28: For 101-143 riders 4 places
A29: Placings | B29: 1D | C29: 2D | D29: 3D | E29: 4D | F29: 5D
A30: 1st | B30: =$B$7*$H$30 -> 124.8 | C30: =$C$7*$H$30 -> 104 | D30: =$D$7*$H$30 -> 83.2 | E30: =$E$7*$H$30 -> 62.4 | F30: =$F$7*$H$30 -> 41.6 | G30: è | H30: 0.4
A31: 2nd | B31: =$B$7*$H$31 -> 93.6 | C31: =$C$7*$H$31 -> 78 | D31: =$D$7*$H$31 -> 62.4 | E31: =$E$7*$H$31 -> 46.8 | F31: =$F$7*$H$31 -> 31.2 | G31: è | H31: 0.3
A32: 3rd | B32: =$B$7*$H$32 -> 62.4 | C32: =$C$7*$H$32 -> 52 | D32: =$D$7*$H$32 -> 41.6 | E32: =$E$7*$H$32 -> 31.2 | F32: =$F$7*$H$32 -> 20.8 | G32: è | H32: 0.2
A33: 4th | B33: =$B$7*$H$33 -> 31.2 | C33: =$C$7*$H$33 -> 26 | D33: =$D$7*$H$33 -> 20.8 | E33: =$E$7*$H$33 -> 15.6 | F33: =$F$7*$H$33 -> 10.4 | G33: è | H33: 0.1
A34: Totals | B34: =SUM(B30:B33) -> 312 | C34: =SUM(C30:C33) -> 260 | D34: =SUM(D30:D33) -> 208 | E34: =SUM(E30:E33) -> 156 | F34: =SUM(F30:F33) -> 104 | G34: =SUM(B34:F34) -> 1040 | H34: =SUM(H30:H33) -> 1
A36: For 144-200 riders 5 places
A37: Placings | B37: 1D | C37: 2D | D37: 3D | E37: 4D | F37: 5D
A38: 1st | B38: =$B$7*$H$38 -> 102.96 | C38: =$C$7*$H$38 -> 85.8 | D38: 709.5 | E38: =$E$7*$H$38 -> 51.48 | F38: =$F$7*$H$38 -> 34.32 | G38: è | H38: 0.33
A39: 2nd | B39: =$B$7*$H$39 -> 84.24 | C39: =$C$7*$H$39 -> 70.2 | D39: 580.5 | E39: =$E$7*$H$39 -> 42.12 | F39: =$F$7*$H$39 -> 28.08 | G39: è | H39: 0.27
A40: 3rd | B40: =$B$7*$H$40 -> 62.4 | C40: =$C$7*$H$40 -> 52 | D40: 430 | E40: =$E$7*$H$40 -> 31.2 | F40: =$F$7*$H$40 -> 20.8 | G40: è | H40: 0.2
A41: 4th | B41: =$B$7*$H$41 -> 40.56 | C41: =$C$7*$H$41 -> 33.8 | D41: 279.5 | E41: =$E$7*$H$41 -> 20.28 | F41: =$F$7*$H$41 -> 13.52 | G41: è | H41: 0.13
A42: 5th | B42: =$B$7*$H$42 -> 21.84 | C42: =$C$7*$H$42 -> 18.2 | D42: 150.5 | E42: =$E$7*$H$42 -> 10.92 | F42: =$F$7*$H$42 -> 7.28 | G42: è | H42: 0.07
A43: Totals | B43: =SUM(B38:B42) -> 312 | C43: =SUM(C38:C42) -> 260 | D43: =SUM(D38:D42) -> 2150 | E43: =SUM(E38:E42) -> 156 | F43: =SUM(F38:F42) -> 104 | G43: =SUM(B43:F43) -> 2982 | H43: =SUM(H38:H42) -> 1
A45: For 201-250 riders 6 places
A46: Placings | B46: 1D | C46: 2D | D46: 3D | E46: 4D | F46: 5D
A47: 1st | B47: =$B$7*$H$47 -> 90.48 | C47: =$C$7*$H$47 -> 75.4 | D47: =$D$7*$H$47 -> 60.32 | E47: =$E$7*$H$47 -> 45.24 | F47: =$F$7*$H$47 -> 30.16 | G47: è | H47: 0.29
A48: 2nd | B48: =$B$7*$H$48 -> 74.88 | C48: =$C$7*$H$48 -> 62.4 | D48: =$D$7*$H$48 -> 49.92 | E48: =$E$7*$H$48 -> 37.44 | F48: =$F$7*$H$48 -> 24.96 | G48: è | H48: 0.24
A49: 3rd | B49: =$B$7*$H$49 -> 59.28 | C49: =$C$7*$H$49 -> 49.4 | D49: =$D$7*$H$49 -> 39.52 | E49: =$E$7*$H$49 -> 29.64 | F49: =$F$7*$H$49 -> 19.76 | G49: è | H49: 0.19
A50: 4th | B50: =$B$7*$H$50 -> 43.68 | C50: =$C$7*$H$50 -> 36.4 | D50: =$D$7*$H$50 -> 29.12 | E50: =$E$7*$H$50 -> 21.84 | F50: =$F$7*$H$50 -> 14.56 | G50: è | H50: 0.14
A51: 5th | B51: =$B$7*$H$51 -> 28.08 | C51: =$C$7*$H$51 -> 23.4 | D51: =$D$7*$H$51 -> 18.72 | E51: =$E$7*$H$51 -> 14.04 | F51: =$F$7*$H$51 -> 9.36 | G51: è | H51: 0.09
A52: 6th | B52: =$B$7*$H$52 -> 15.6 | C52: =$C$7*$H$52 -> 13 | D52: =$D$7*$H$52 -> 10.4 | E52: =$E$7*$H$52 -> 7.8 | F52: =$F$7*$H$52 -> 5.2 | G52: è | H52: 0.05
A53: Totals | B53: =SUM(B47:B52) -> 312 | C53: =SUM(C47:C52) -> 260 | D53: =SUM(D47:D52) -> 208 | E53: =SUM(E47:E52) -> 156 | F53: =SUM(F47:F52) -> 104 | G53: =SUM(B53:F53) -> 1040 | H53: =SUM(H47:H52) -> 1
A55: For 251-333 riders 8 places
A56: Placings | B56: 1D | C56: 2D | D56: 3D | E56: 4D | F56: 5D
A57: 1st | B57: =$B$7*$H$57 -> 74.88 | C57: =$C$7*$H$57 -> 62.4 | D57: =$D$7*$H$57 -> 49.92 | E57: =$E$7*$H$57 -> 37.44 | F57: =$F$7*$H$57 -> 24.96 | G57: è | H57: 0.24
A58: 2nd | B58: =$B$7*$H$58 -> 62.4 | C58: =$C$7*$H$58 -> 52 | D58: =$D$7*$H$58 -> 41.6 | E58: =$E$7*$H$58 -> 31.2 | F58: =$F$7*$H$58 -> 20.8 | G58: è | H58: 0.2
A59: 3rd | B59: =$B$7*$H$59 -> 53.04 | C59: =$C$7*$H$59 -> 44.2 | D59: =$D$7*$H$59 -> 35.36 | E59: =$E$7*$H$59 -> 26.52 | F59: =$F$7*$H$59 -> 17.68 | G59: è | H59: 0.17
A60: 4th | B60: =$B$7*$H$60 -> 40.56 | C60: =$C$7*$H$60 -> 33.8 | D60: =$D$7*$H$60 -> 27.04 | E60: =$E$7*$H$60 -> 20.28 | F60: =$F$7*$H$60 -> 13.52 | G60: è | H60: 0.13
A61: 5th | B61: =$B$7*$H$61 -> 31.2 | C61: =$C$7*$H$61 -> 26 | D61: =$D$7*$H$61 -> 20.8 | E61: =$E$7*$H$61 -> 15.6 | F61: =$F$7*$H$61 -> 10.4 | G61: è | H61: 0.1
A62: 6th | B62: =$B$7*$H$62 -> 21.84 | C62: =$C$7*$H$62 -> 18.2 | D62: =$D$7*$H$62 -> 14.56 | E62: =$E$7*$H$62 -> 10.92 | F62: =$F$7*$H$62 -> 7.28 | G62: è | H62: 0.07
A63: 7th | B63: =$B$7*$H$63 -> 15.6 | C63: =$C$7*$H$63 -> 13 | D63: =$D$7*$H$63 -> 10.4 | E63: =$E$7*$H$63 -> 7.8 | F63: =$F$7*$H$63 -> 5.2 | G63: è | H63: 0.05
A64: 8th | B64: =$B$7*$H$64 -> 12.48 | C64: =$C$7*$H$64 -> 10.4 | D64: =$D$7*$H$64 -> 8.32 | E64: =$E$7*$H$64 -> 6.24 | F64: =$F$7*$H$64 -> 4.16 | G64: è | H64: 0.04
A65: Totals | B65: =SUM(B57:B64) -> 312 | C65: =SUM(C57:C64) -> 260 | D65: =SUM(D57:D64) -> 208 | E65: =SUM(E57:E64) -> 156 | F65: =SUM(F57:F64) -> 104 | G65: =SUM(B65:F65) -> 1040 | H65: =SUM(H57:H64) -> 1
A67: For 334-500 riders 10 places
A68: Placings | B68: 1D | C68: 2D | D68: 3D | E68: 4D | F68: 5D
A69: 1st | B69: =$B$7*$H$69 -> 65.52 | C69: =$C$7*$H$69 -> 54.6 | D69: =$D$7*$H$69 -> 43.68 | E69: =$E$7*$H$69 -> 32.76 | F69: =$F$7*$H$69 -> 21.84 | G69: è | H69: 0.21
A70: 2nd | B70: =$B$7*$H$70 -> 56.16 | C70: =$C$7*$H$70 -> 46.8 | D70: =$D$7*$H$70 -> 37.44 | E70: =$E$7*$H$70 -> 28.08 | F70: =$F$7*$H$70 -> 18.72 | G70: è | H70: 0.18
A71: 3rd | B71: =$B$7*$H$71 -> 46.8 | C71: =$C$7*$H$71 -> 39 | D71: =$D$7*$H$71 -> 31.2 | E71: =$E$7*$H$71 -> 23.4 | F71: =$F$7*$H$71 -> 15.6 | G71: è | H71: 0.15
A72: 4th | B72: =$B$7*$H$72 -> 37.44 | C72: =$C$7*$H$72 -> 31.2 | D72: =$D$7*$H$72 -> 24.96 | E72: =$E$7*$H$72 -> 18.72 | F72: =$F$7*$H$72 -> 12.48 | G72: è | H72: 0.12
A73: 5th | B73: =$B$7*$H$73 -> 28.08 | C73: =$C$7*$H$73 -> 23.4 | D73: =$D$7*$H$73 -> 18.72 | E73: =$E$7*$H$73 -> 14.04 | F73: =$F$7*$H$73 -> 9.36 | G73: è | H73: 0.09
A74: 6th | B74: =$B$7*$H$74 -> 21.84 | C74: =$C$7*$H$74 -> 18.2 | D74: =$D$7*$H$74 -> 14.56 | E74: =$E$7*$H$74 -> 10.92 | F74: =$F$7*$H$74 -> 7.28 | G74: è | H74: 0.07
A75: 7th | B75: =$B$7*$H$75 -> 18.72 | C75: =$C$7*$H$75 -> 15.6 | D75: =$D$7*$H$75 -> 12.48 | E75: =$E$7*$H$75 -> 9.36 | F75: =$F$7*$H$75 -> 6.24 | G75: è | H75: 0.06
A76: 8th | B76: =$B$7*$H$76 -> 15.6 | C76: =$C$7*$H$76 -> 13 | D76: =$D$7*$H$76 -> 10.4 | E76: =$E$7*$H$76 -> 7.8 | F76: =$F$7*$H$76 -> 5.2 | G76: è | H76: 0.05
A77: 9th | B77: =$B$7*$H$77 -> 12.48 | C77: =$C$7*$H$77 -> 10.4 | D77: =$D$7*$H$77 -> 8.32 | E77: =$E$7*$H$77 -> 6.24 | F77: =$F$7*$H$77 -> 4.16 | G77: è | H77: 0.04
A78: 10th | B78: =$B$7*$H$78 -> 9.36 | C78: =$C$7*$H$78 -> 7.8 | D78: =$D$7*$H$78 -> 6.24 | E78: =$E$7*$H$78 -> 4.68 | F78: =$F$7*$H$78 -> 3.12 | G78: è | H78: 0.03
A79: Totals | B79: =SUM(B69:B78) -> 312 | C79: =SUM(C69:C78) -> 260 | D79: 208 | E79: 156 | F79: 104 | G79: =SUM(B79:F79) -> 1040 | H79: =SUM(H69:H78) -> 1
A81: For 501-666 riders 12 places
A82: Placings | B82: 1D | C82: 2D | D82: 3D | E82: 4D | F82: 5D
A83: 1st | B83: =$B$7*$H$83 -> 59.28 | C83: =$C$7*$H$83 -> 49.4 | D83: =$D$7*$H$83 -> 39.52 | E83: =$E$7*$H$83 -> 29.64 | F83: =$F$7*$H$83 -> 19.76 | G83: è | H83: 0.19
A84: 2nd | B84: =$B$7*$H$84 -> 46.8 | C84: =$C$7*$H$84 -> 39 | D84: =$D$7*$H$84 -> 31.2 | E84: =$E$7*$H$84 -> 23.4 | F84: =$F$7*$H$84 -> 15.6 | G84: è | H84: 0.15
A85: 3rd | B85: =$B$7*$H$85 -> 37.44 | C85: =$C$7*$H$85 -> 31.2 | D85: =$D$7*$H$85 -> 24.96 | E85: =$E$7*$H$85 -> 18.72 | F85: =$F$7*$H$85 -> 12.48 | G85: è | H85: 0.12
A86: 4th | B86: =$B$7*$H$86 -> 31.2 | C86: =$C$7*$H$86 -> 26 | D86: =$D$7*$H$86 -> 20.8 | E86: =$E$7*$H$86 -> 15.6 | F86: =$F$7*$H$86 -> 10.4 | G86: è | H86: 0.1
A87: 5th | B87: =$B$7*$H$87 -> 28.08 | C87: =$C$7*$H$87 -> 23.4 | D87: =$D$7*$H$87 -> 18.72 | E87: =$E$7*$H$87 -> 14.04 | F87: =$F$7*$H$87 -> 9.36 | G87: è | H87: 0.09
A88: 6th | B88: =$B$7*$H$88 -> 24.96 | C88: =$C$7*$H$88 -> 20.8 | D88: =$D$7*$H$88 -> 16.64 | E88: =$E$7*$H$88 -> 12.48 | F88: =$F$7*$H$88 -> 8.32 | G88: è | H88: 0.08
A89: 7th | B89: =$B$7*$H$89 -> 21.84 | C89: =$C$7*$H$89 -> 18.2 | D89: =$D$7*$H$89 -> 14.56 | E89: =$E$7*$H$89 -> 10.92 | F89: =$F$7*$H$89 -> 7.28 | G89: è | H89: 0.07
A90: 8th | B90: =$B$7*$H$90 -> 18.72 | C90: =$C$7*$H$90 -> 15.6 | D90: =$D$7*$H$90 -> 12.48 | E90: =$E$7*$H$90 -> 9.36 | F90: =$F$7*$H$90 -> 6.24 | G90: è | H90: 0.06
A91: 9th | B91: =$B$7*$H$91 -> 15.6 | C91: =$C$7*$H$91 -> 13 | D91: =$D$7*$H$91 -> 10.4 | E91: =$E$7*$H$91 -> 7.8 | F91: =$F$7*$H$91 -> 5.2 | G91: è | H91: 0.05
A92: 10th | B92: =$B$7*$H$92 -> 12.48 | C92: =$C$7*$H$92 -> 10.4 | D92: =$D$7*$H$92 -> 8.32 | E92: =$E$7*$H$92 -> 6.24 | F92: =$F$7*$H$92 -> 4.16 | G92: è | H92: 0.04
A93: 11th | B93: =$B$7*$H$93 -> 9.36 | C93: =$C$7*$H$93 -> 7.8 | D93: =$D$7*$H$93 -> 6.24 | E93: =$E$7*$H$93 -> 4.68 | F93: =$F$7*$H$93 -> 3.12 | G93: è | H93: 0.03
A94: 12th | B94: =$B$7*$H$94 -> 6.24 | C94: =$C$7*$H$94 -> 5.2 | D94: =$D$7*$H$94 -> 4.16 | E94: =$E$7*$H$94 -> 3.12 | F94: =$F$7*$H$94 -> 2.08 | G94: è | H94: 0.02
A95: Totals | B95: =SUM(B83:B94) -> 312 | C95: =SUM(C83:C94) -> 260 | D95: =SUM(D83:D94) -> 208 | E95: =SUM(E83:E94) -> 156 | F95: =SUM(F83:F94) -> 104 | G95: =SUM(B95:F95) -> 1040 | H95: =SUM(H83:H94) -> 1
A97: For 667-1000 riders 15 places
A98: Placings | B98: 1D | C98: 2D | D98: 3D | E98: 4D | F98: 5D
A99: 1st | B99: =$B$7*$H$99 -> 56.16 | C99: =$C$7*$H$99 -> 46.8 | D99: =$D$7*$H$99 -> 37.44 | E99: =$E$7*$H$99 -> 28.08 | F99: =$F$7*$H$99 -> 18.72 | G99: è | H99: 0.18
A100: 2nd | B100: =$B$7*$H$100 -> 46.8 | C100: =$C$7*$H$100 -> 39 | D100: =$D$7*$H$100 -> 31.2 | E100: =$E$7*$H$100 -> 23.4 | F100: =$F$7*$H$100 -> 15.6 | G100: è | H100: 0.15
A101: 3rd | B101: =$B$7*$H$101 -> 37.44 | C101: =$C$7*$H$101 -> 31.2 | D101: =$D$7*$H$101 -> 24.96 | E101: =$E$7*$H$101 -> 18.72 | F101: =$F$7*$H$101 -> 12.48 | G101: è | H101: 0.12
A102: 4th | B102: =$B$7*$H$102 -> 31.2 | C102: =$C$7*$H$102 -> 26 | D102: =$D$7*$H$102 -> 20.8 | E102: =$E$7*$H$102 -> 15.6 | F102: =$F$7*$H$102 -> 10.4 | G102: è | H102: 0.1
A103: 5th | B103: =$B$7*$H$103 -> 26.52 | C103: =$C$7*$H$103 -> 22.1 | D103: =$D$7*$H$103 -> 17.68 | E103: =$E$7*$H$103 -> 13.26 | F103: =$F$7*$H$103 -> 8.84 | G103: è | H103: 0.085
A104: 6th | B104: =$B$7*$H$104 -> 21.84 | C104: =$C$7*$H$104 -> 18.2 | D104: =$D$7*$H$104 -> 14.56 | E104: =$E$7*$H$104 -> 10.92 | F104: =$F$7*$H$104 -> 7.28 | G104: è | H104: 0.07
A105: 7th | B105: =$B$7*$H$105 -> 18.72 | C105: =$C$7*$H$105 -> 15.6 | D105: =$D$7*$H$105 -> 12.48 | E105: =$E$7*$H$105 -> 9.36 | F105: =$F$7*$H$105 -> 6.24 | G105: è | H105: 0.06
A106: 8th | B106: =$B$7*$H$106 -> 15.6 | C106: =$C$7*$H$106 -> 13 | D106: =$D$7*$H$106 -> 10.4 | E106: =$E$7*$H$106 -> 7.8 | F106: =$F$7*$H$106 -> 5.2 | G106: è | H106: 0.05
A107: 9th | B107: =$B$7*$H$107 -> 13.26 | C107: =$C$7*$H$107 -> 11.05 | D107: =$D$7*$H$107 -> 8.84 | E107: =$E$7*$H$107 -> 6.63 | F107: =$F$7*$H$107 -> 4.42 | G107: è | H107: 0.0425
A108: 10th | B108: =$B$7*$H$108 -> 10.92 | C108: =$C$7*$H$108 -> 9.1 | D108: =$D$7*$H$108 -> 7.28 | E108: =$E$7*$H$108 -> 5.46 | F108: =$F$7*$H$108 -> 3.64 | G108: è | H108: 0.035
A109: 11th | B109: =$B$7*$H$109 -> 9.36 | C109: =$C$7*$H$109 -> 7.8 | D109: =$D$7*$H$109 -> 6.24 | E109: =$E$7*$H$109 -> 4.68 | F109: =$F$7*$H$109 -> 3.12 | G109: è | H109: 0.03
A110: 12th | B110: =$B$7*$H$110 -> 7.8 | C110: =$C$7*$H$110 -> 6.5 | D110: =$D$7*$H$110 -> 5.2 | E110: =$E$7*$H$110 -> 3.9 | F110: =$F$7*$H$110 -> 2.6 | G110: è | H110: 0.025
A111: 13th | B111: =$B$7*$H$111 -> 6.24 | C111: =$C$7*$H$111 -> 5.2 | D111: =$D$7*$H$111 -> 4.16 | E111: =$E$7*$H$111 -> 3.12 | F111: =$F$7*$H$111 -> 2.08 | G111: è | H111: 0.02
A112: 14th | B112: =$B$7*$H$112 -> 5.46 | C112: =$C$7*$H$112 -> 4.55 | D112: =$D$7*$H$112 -> 3.64 | E112: =$E$7*$H$112 -> 2.73 | F112: =$F$7*$H$112 -> 1.82 | G112: è | H112: 0.0175
A113: 15th | B113: =$B$7*$H$113 -> 4.68 | C113: =$C$7*$H$113 -> 3.9 | D113: =$D$7*$H$113 -> 3.12 | E113: =$E$7*$H$113 -> 2.34 | F113: =$F$7*$H$113 -> 1.56 | G113: è | H113: 0.015
A114: Totals | B114: =SUM(B99:B113) -> 312 | C114: =SUM(C99:C113) -> 260 | D114: =SUM(D99:D113) -> 208 | E114: =SUM(E99:E113) -> 156 | F114: =SUM(F99:F113) -> 104 | G114: =SUM(B114:F114) -> 1040 | H114: =SUM(H99:H113) -> 1
A116: For 1001-1500 riders 20 places
A117: Placings | B117: 1D | C117: 2D | D117: 3D | E117: 4D | F117: 5D
A118: 1st | B118: =$B$7*$H$118 -> 43.68 | C118: =$C$7*$H$118 -> 36.4 | D118: =$D$7*$H$118 -> 29.12 | E118: =$E$7*$H$118 -> 21.84 | F118: =$F$7*$H$118 -> 14.56 | G118: è | H118: 0.14
A119: 2nd | B119: =$B$7*$H$119 -> 34.32 | C119: =$C$7*$H$119 -> 28.6 | D119: =$D$7*$H$119 -> 22.88 | E119: =$E$7*$H$119 -> 17.16 | F119: =$F$7*$H$119 -> 11.44 | G119: è | H119: 0.11
A120: 3rd | B120: =$B$7*$H$120 -> 28.08 | C120: =$C$7*$H$120 -> 23.4 | D120: =$D$7*$H$120 -> 18.72 | E120: =$E$7*$H$120 -> 14.04 | F120: =$F$7*$H$120 -> 9.36 | G120: è | H120: 0.09
A121: 4th | B121: =$B$7*$H$121 -> 24.024 | C121: =$C$7*$H$121 -> 20.02 | D121: =$D$7*$H$121 -> 16.016 | E121: =$E$7*$H$121 -> 12.012 | F121: =$F$7*$H$121 -> 8.008 | G121: è | H121: 0.077
A122: 5th | B122: =$B$7*$H$122 -> 21.84 | C122: =$C$7*$H$122 -> 18.2 | D122: =$D$7*$H$122 -> 14.56 | E122: =$E$7*$H$122 -> 10.92 | F122: =$F$7*$H$122 -> 7.28 | G122: è | H122: 0.07
A123: 6th | B123: =$B$7*$H$123 -> 20.28 | C123: =$C$7*$H$123 -> 16.9 | D123: =$D$7*$H$123 -> 13.52 | E123: =$E$7*$H$123 -> 10.14 | F123: =$F$7*$H$123 -> 6.76 | G123: è | H123: 0.065
A124: 7th | B124: =$B$7*$H$124 -> 18.72 | C124: =$C$7*$H$124 -> 15.6 | D124: =$D$7*$H$124 -> 12.48 | E124: =$E$7*$H$124 -> 9.36 | F124: =$F$7*$H$124 -> 6.24 | G124: è | H124: 0.06
A125: 8th | B125: =$B$7*$H$125 -> 17.16 | C125: =$C$7*$H$125 -> 14.3 | D125: =$D$7*$H$125 -> 11.44 | E125: =$E$7*$H$125 -> 8.58 | F125: =$F$7*$H$125 -> 5.72 | G125: è | H125: 0.055
A126: 9th | B126: =$B$7*$H$126 -> 15.6 | C126: =$C$7*$H$126 -> 13 | D126: =$D$7*$H$126 -> 10.4 | E126: =$E$7*$H$126 -> 7.8 | F126: =$F$7*$H$126 -> 5.2 | G126: è | H126: 0.05
A127: 10th | B127: =$B$7*$H$127 -> 14.04 | C127: =$C$7*$H$127 -> 11.7 | D127: =$D$7*$H$127 -> 9.36 | E127: =$E$7*$H$127 -> 7.02 | F127: =$F$7*$H$127 -> 4.68 | G127: è | H127: 0.045
A128: 11th | B128: =$B$7*$H$128 -> 12.48 | C128: =$C$7*$H$128 -> 10.4 | D128: =$D$7*$H$128 -> 8.32 | E128: =$E$7*$H$128 -> 6.24 | F128: =$F$7*$H$128 -> 4.16 | G128: è | H128: 0.04
A129: 12th | B129: =$B$7*$H$129 -> 11.544 | C129: =$C$7*$H$129 -> 9.62 | D129: =$D$7*$H$129 -> 7.696 | E129: =$E$7*$H$129 -> 5.772 | F129: =$F$7*$H$129 -> 3.848 | G129: è | H129: 0.037
A130: 13th | B130: =$B$7*$H$130 -> 10.296 | C130: =$C$7*$H$130 -> 8.58 | D130: =$D$7*$H$130 -> 6.864 | E130: =$E$7*$H$130 -> 5.148 | F130: =$F$7*$H$130 -> 3.432 | G130: è | H130: 0.033
A131: 14th | B131: =$B$7*$H$131 -> 9.048 | C131: =$C$7*$H$131 -> 7.54 | D131: =$D$7*$H$131 -> 6.032 | E131: =$E$7*$H$131 -> 4.524 | F131: =$F$7*$H$131 -> 3.016 | G131: è | H131: 0.029
A132: 15th | B132: =$B$7*$H$132 -> 7.8 | C132: =$C$7*$H$132 -> 6.5 | D132: =$D$7*$H$132 -> 5.2 | E132: =$E$7*$H$132 -> 3.9 | F132: =$F$7*$H$132 -> 2.6 | G132: è | H132: 0.025
A133: 16th | B133: =$B$7*$H$133 -> 6.552 | C133: =$C$7*$H$133 -> 5.46 | D133: =$D$7*$H$133 -> 4.368 | E133: =$E$7*$H$133 -> 3.276 | F133: =$F$7*$H$133 -> 2.184 | G133: è | H133: 0.021
A134: 17th | B134: =$B$7*$H$134 -> 5.304 | C134: =$C$7*$H$134 -> 4.42 | D134: =$D$7*$H$134 -> 3.536 | E134: =$E$7*$H$134 -> 2.652 | F134: =$F$7*$H$134 -> 1.768 | G134: è | H134: 0.017
A135: 18th | B135: =$B$7*$H$135 -> 4.368 | C135: =$C$7*$H$135 -> 3.64 | D135: =$D$7*$H$135 -> 2.912 | E135: =$E$7*$H$135 -> 2.184 | F135: =$F$7*$H$135 -> 1.456 | G135: è | H135: 0.014
A136: 19th | B136: =$B$7*$H$136 -> 3.744 | C136: =$C$7*$H$136 -> 3.12 | D136: =$D$7*$H$136 -> 2.496 | E136: =$E$7*$H$136 -> 1.872 | F136: =$F$7*$H$136 -> 1.248 | G136: è | H136: 0.012
A137: 20th | B137: =$B$7*$H$137 -> 3.12 | C137: =$C$7*$H$137 -> 2.6 | D137: =$D$7*$H$137 -> 2.08 | E137: =$E$7*$H$137 -> 1.56 | F137: =$F$7*$H$137 -> 1.04 | G137: è | H137: 0.01
A138: Totals | B138: =SUM(B118:B137) -> 312 | C138: =SUM(C118:C137) -> 260 | D138: 208 | E138: 156 | F138: 104 | G138: =SUM(B138:F138) -> 1040 | H138: =SUM(H118:H137) -> 1
A140: For 1501 or More riders 30 places
A141: Placings | B141: 1D | C141: 2D | D141: 3D | E141: 4D | F141: 5D
A142: 1st | B142: =$B$7*$H142 -> 37.44 | C142: =$C$7*$H142 -> 31.2 | D142: =$D$7*$H142 -> 24.96 | E142: =$E$7*$H142 -> 18.72 | F142: =$F$7*$H142 -> 12.48 | G142: è | H142: 0.12
A143: 2nd | B143: =$B$7*$H143 -> 29.64 | C143: 24.7 | D143: 19.76 | E143: 14.82 | F143: 9.88 | G143: è | H143: 0.095
A144: 3rd | B144: =$B$7*$H144 -> 22.776 | C144: 18.98 | D144: 15.184 | E144: 11.388 | F144: 7.592 | G144: è | H144: 0.073
A145: 4th | B145: =$B$7*$H145 -> 19.344 | C145: 16.12 | D145: 12.896 | E145: 9.672 | F145: 6.448 | G145: è | H145: 0.062
A146: 5th | B146: 15.6 | C146: 13 | D146: 10.4 | E146: 7.8 | F146: 5.2 | G146: è | H146: 0.05
A147: 6th | B147: 14.04 | C147: 11.7 | D147: 9.36 | E147: 7.02 | F147: 4.68 | G147: è | H147: 0.045
A148: 7th | B148: 13.416 | C148: 11.18 | D148: 8.944 | E148: 6.708 | F148: 4.472 | G148: è | H148: 0.043
A149: 8th | B149: 12.48 | C149: 10.4 | D149: 8.32 | E149: 6.24 | F149: 4.16 | G149: è | H149: 0.04
A150: 9th | B150: 11.544 | C150: 9.62 | D150: 7.696 | E150: 5.772 | F150: 3.848 | G150: è | H150: 0.037
A151: 10th | B151: 10.92 | C151: 9.1 | D151: 7.28 | E151: 5.46 | F151: 3.64 | G151: è | H151: 0.035
A152: 11th | B152: 10.296 | C152: 8.58 | D152: 6.864 | E152: 5.148 | F152: 3.432 | G152: è | H152: 0.033
A153: 12th | B153: 9.672 | C153: 8.06 | D153: 6.448 | E153: 4.836 | F153: 3.224 | G153: è | H153: 0.031
A154: 13th | B154: 9.048 | C154: 7.54 | D154: 6.032 | E154: 4.524 | F154: 3.016 | G154: è | H154: 0.029
A155: 14th | B155: 8.424 | C155: 7.02 | D155: 5.616 | E155: 4.212 | F155: 2.808 | G155: è | H155: 0.027
A156: 15th | B156: 7.8 | C156: 6.5 | D156: 5.2 | E156: 3.9 | F156: 2.6 | G156: è | H156: 0.025
A157: 16th | B157: 7.488 | C157: 6.24 | D157: 4.992 | E157: 3.744 | F157: 2.496 | G157: è | H157: 0.024
A158: 17th | B158: 7.176 | C158: 5.98 | D158: 4.784 | E158: 3.588 | F158: 2.392 | G158: è | H158: 0.023
A159: 18th | B159: 6.864 | C159: 5.72 | D159: 4.576 | E159: 3.432 | F159: 2.288 | G159: è | H159: 0.022
A160: 19th | B160: 6.552 | C160: 5.46 | D160: 4.368 | E160: 3.276 | F160: 2.184 | G160: è | H160: 0.021
A161: 20th | B161: 6.24 | C161: 5.2 | D161: 4.16 | E161: 3.12 | F161: 2.08 | G161: è | H161: 0.02
A162: 21st | B162: 5.928 | C162: 4.94 | D162: 3.952 | E162: 2.964 | F162: 1.976 | G162: è | H162: 0.019
A163: 22nd | B163: 5.616 | C163: 4.68 | D163: 3.744 | E163: 2.808 | F163: 1.872 | G163: è | H163: 0.018
A164: 23rd | B164: 5.304 | C164: 4.42 | D164: 3.536 | E164: 2.652 | F164: 1.768 | G164: è | H164: 0.017
A165: 24th | B165: 4.992 | C165: 4.16 | D165: 3.328 | E165: 2.496 | F165: 1.664 | G165: è | H165: 0.016
A166: 25th | B166: 4.68 | C166: 3.9 | D166: 3.12 | E166: 2.34 | F166: 1.56 | G166: è | H166: 0.015
A167: 26th | B167: 4.368 | C167: 3.64 | D167: 2.912 | E167: 2.184 | F167: 1.456 | G167: è | H167: 0.014
A168: 27th | B168: 4.056 | C168: 3.38 | D168: 2.704 | E168: 2.028 | F168: 1.352 | G168: è | H168: 0.013
A169: 28th | B169: 3.744 | C169: 3.12 | D169: 2.496 | E169: 1.872 | F169: 1.248 | G169: è | H169: 0.012
A170: 29th | B170: 3.432 | C170: 2.86 | D170: 2.288 | E170: 1.716 | F170: 1.144 | G170: è | H170: 0.011
A171: 30th | B171: 3.12 | C171: 2.6 | D171: 2.08 | E171: 1.56 | F171: 1.04 | G171: è | H171: 0.01
A172: Totals | B172: =SUM(B142:B171) -> 312 | C172: =SUM(C142:C171) -> 260 | D172: 208 | E172: 156 | F172: 104 | G172: =SUM(B172:F172) -> 1040 | H172: =SUM(H142:H171) -> 1

Sheet DON'T TOUCH (hidden)
A2: Yes | C2: S | D2: 5 | E2: X
C3: A | D3: 10
C4: Y | D4: 15
C5: P | D5: BP
D6: SCR
